Body,Body name,Date,Transaction number,Amount,Non recoverable VAT included in amount,Supplier name,Supplier ID,Expense area,Fund type,Expense type,Category description,
http://statistics.data.gov.uk/search?search=E07000114,Thanet District Council,03/10/2017,440622,2600.00,,123hr Limited,123003,Corporate Resources and S151,Balance Sheet,Plant And Equipment,ICT,
http://statistics.data.gov.uk/search?search=E07000114,Thanet District Council,03/10/2017,440897,293.63,,Adecco Uk Ltd,ADE005,Chief Executive,Revenue,Agency Staff,Human Resources,
http://statistics.data.gov.uk/search?search=E07000114,Thanet District Council,03/10/2017,440285,555.00,,All Sign Solutions Ltd,ALL002,Community Services,Revenue,"Equip, Furniture And Materials",Building Construction Material,
http://statistics.data.gov.uk/search?search=E07000114,Thanet District Council,03/10/2017,439881,968.00,,Aston Walker,AST008,Community Services,Revenue,Services,Cemetery And Crematorium,
http://statistics.data.gov.uk/search?search=E07000114,Thanet District Council,03/10/2017,440335,70801.38,,Axis Europe Plc,AXI001,Corporate Resources and S151,Balance Sheet,Council Dwellings,Construction-Repair And Maint,
http://statistics.data.gov.uk/search?search=E07000114,Thanet District Council,03/10/2017,440904,233.75,,Bradstowe Chartered Surveyors,BRA027,Community Services,Revenue,Services,Facilities And Management Serv,
http://statistics.data.gov.uk/search?search=E07000114,Thanet District Council,03/10/2017,440878,14963.24,,Bramling Construction Ltd,BRA020,Corporate Resources and S151,Balance Sheet,Capital Exp-Non Council Assets,Grants,
http://statistics.data.gov.uk/search?search=E07000114,Thanet District Council,03/10/2017,440337,1295.00,,Buckingham Futures Limited,BUC010,Community Services,Revenue,Agency Staff,Human Resources,
http://statistics.data.gov.uk/search?search=E07000114,Thanet District Council,03/10/2017,440338,1505.00,,Buckingham Futures Limited,BUC010,Community Services,Revenue,Agency Staff,Human Resources,
http://statistics.data.gov.uk/search?search=E07000114,Thanet District Council,03/10/2017,439636,1130.01,,Canon (Uk) Ltd,CAN021,Corporate Governance,Revenue,"Equip, Furniture And Materials",Facilities And Management Serv,
http://statistics.data.gov.uk/search?search=E07000114,Thanet District Council,03/10/2017,439885,234.38,,Canon (Uk) Ltd,CAN021,Corporate Governance,Revenue,"Print, Stat And Gen Off Exps",Facilities And Management Serv,
http://statistics.data.gov.uk/search?search=E07000114,Thanet District Council,03/10/2017,440668,650.00,,Cieh,CIE001,Community Services,Revenue,Agency Staff,Human Resources,
http://statistics.data.gov.uk/search?search=E07000114,Thanet District Council,03/10/2017,435570,3000.00,,Civica Uk Ltd,CIV003,Corporate Resources and S151,Revenue,Communications & Computing,ICT,
http://statistics.data.gov.uk/search?search=E07000114,Thanet District Council,03/10/2017,440019,-1750.00,,Civica Uk Ltd,CIV003,Corporate Resources and S151,Revenue,Communications & Computing,ICT,
http://statistics.data.gov.uk/search?search=E07000114,Thanet District Council,03/10/2017,440345,624.35,,Dennis Eagle Ltd,DEN005,Operational Services,Revenue,Direct Transport Costs,Vehicle Management,
http://statistics.data.gov.uk/search?search=E07000114,Thanet District Council,03/10/2017,440021,37830.00,,Dover District Council,DOV001,Corporate Resources and S151,Revenue,Services,Various Cats-Public Sector,
http://statistics.data.gov.uk/search?search=E07000114,Thanet District Council,03/10/2017,440378,1625.00,,Dr R K Chhabra,CHH001,Operational Services,Revenue,Services,Cemetery And Crematorium,
http://statistics.data.gov.uk/search?search=E07000114,Thanet District Council,03/10/2017,440305,267.00,,East Kent Hose,EKH004,Operational Services,Revenue,Direct Transport Costs,Vehicle Management,
http://statistics.data.gov.uk/search?search=E07000114,Thanet District Council,03/10/2017,440879,3004.00,,Family Mosaic Housing,FAM001,Corporate Resources and S151,Balance Sheet,Capital Exp-Non Council Assets,Housing Management,
http://statistics.data.gov.uk/search?search=E07000114,Thanet District Council,03/10/2017,440787,250.00,,Hbinfo Limited,HBI001,East Kent Shared Services,Revenue,Training,Financial Services,
http://statistics.data.gov.uk/search?search=E07000114,Thanet District Council,03/10/2017,440422,893.48,,Hilton Cabinet Co Ltd,HIL002,Operational Services,Revenue,"Equip, Furniture And Materials",Furniture And Soft Furnishings,
http://statistics.data.gov.uk/search?search=E07000114,Thanet District Council,03/10/2017,440215,4075.13,,Hr Go (Kent) Ltd,HRG001,Operational Services,Revenue,Agency Staff,Human Resources,
http://statistics.data.gov.uk/search?search=E07000114,Thanet District Council,03/10/2017,440216,10549.43,,Hr Go (Kent) Ltd,HRG001,Operational Services,Revenue,Agency Staff,Human Resources,
http://statistics.data.gov.uk/search?search=E07000114,Thanet District Council,03/10/2017,440351,456.53,,Hr Go (Kent) Ltd,HRG001,Community Services,Revenue,Agency Staff,Human Resources,
http://statistics.data.gov.uk/search?search=E07000114,Thanet District Council,03/10/2017,440354,1457.72,,Hr Go (Kent) Ltd,HRG001,Operational Services,Revenue,Agency Staff,Human Resources,
http://statistics.data.gov.uk/search?search=E07000114,Thanet District Council,03/10/2017,440356,1491.84,,Hr Go (Kent) Ltd,HRG001,Operational Services,Revenue,Agency Staff,Human Resources,
http://statistics.data.gov.uk/search?search=E07000114,Thanet District Council,03/10/2017,440358,486.55,,Hr Go (Kent) Ltd,HRG001,Operational Services,Revenue,Agency Staff,Human Resources,
http://statistics.data.gov.uk/search?search=E07000114,Thanet District Council,03/10/2017,440395,-413.10,,Hr Go (Kent) Ltd,HRG001,Operational Services,Revenue,Agency Staff,Human Resources,
http://statistics.data.gov.uk/search?search=E07000114,Thanet District Council,03/10/2017,440599,630.00,,Irrv,IRR002,East Kent Shared Services,Revenue,Expenses,Human Resources,
http://statistics.data.gov.uk/search?search=E07000114,Thanet District Council,03/10/2017,440321,68300.00,,Isuzu Truck (Uk) Limited,ISU001,Corporate Resources and S151,Balance Sheet,Plant And Equipment,Vehicle Management,
http://statistics.data.gov.uk/search?search=E07000114,Thanet District Council,03/10/2017,440280,2724.04,,Kent County Council (Kcs),KCC003,Corporate Governance,Revenue,"Repairs,  Alter & Mtce - Build",Facilities And Management Serv,
http://statistics.data.gov.uk/search?search=E07000114,Thanet District Council,03/10/2017,440379,493.04,,Lyreco Uk Limited,LYR001,Corporate Governance,Revenue,"Print, Stat And Gen Off Exps",Stationery,
http://statistics.data.gov.uk/search?search=E07000114,Thanet District Council,03/10/2017,440589,2784.31,,Mears Ltd,MEA003,Community Services,Revenue,"Repairs,  Alter & Mtce - Build",Construction-Repair And Maint,
http://statistics.data.gov.uk/search?search=E07000114,Thanet District Council,03/10/2017,440590,98240.85,,Mears Ltd,MEA003,Community Services,Revenue,"Repairs,  Alter & Mtce - Build",Construction-Repair And Maint,
http://statistics.data.gov.uk/search?search=E07000114,Thanet District Council,03/10/2017,440591,1817.45,,Mears Ltd,MEA003,Community Services,Revenue,"Repairs,  Alter & Mtce - Build",Construction-Repair And Maint,
http://statistics.data.gov.uk/search?search=E07000114,Thanet District Council,03/10/2017,440592,427.74,,Mears Ltd,MEA003,Corporate Governance,Revenue,"Repairs,  Alter & Mtce - Build",Construction-Repair And Maint,
http://statistics.data.gov.uk/search?search=E07000114,Thanet District Council,03/10/2017,440592,927.36,,Mears Ltd,MEA003,Operational Services,Revenue,"Repairs,  Alter & Mtce - Build",Construction-Repair And Maint,
http://statistics.data.gov.uk/search?search=E07000114,Thanet District Council,03/10/2017,440662,524.66,,Morgan Jones Ltd,MOR001,East Kent Shared Services,Revenue,Agency Staff,Human Resources,
http://statistics.data.gov.uk/search?search=E07000114,Thanet District Council,03/10/2017,440665,524.29,,Morgan Jones Ltd,MOR001,East Kent Shared Services,Revenue,Agency Staff,Human Resources,
http://statistics.data.gov.uk/search?search=E07000114,Thanet District Council,03/10/2017,440903,400.00,,Mr Gary Self,SEL014,Corporate Governance,Revenue,Services,Legal Services,
http://statistics.data.gov.uk/search?search=E07000114,Thanet District Council,03/10/2017,440430,280.00,,N K F Seymour Electrical Cont,SEY002,Community Services,Revenue,Services,Building Construction Material,
http://statistics.data.gov.uk/search?search=E07000114,Thanet District Council,03/10/2017,440012,20000.00,,Neopost Limited Neofunds,NEO004,Corporate Governance,Revenue,Communications & Computing,Mail Services,
http://statistics.data.gov.uk/search?search=E07000114,Thanet District Council,03/10/2017,440003,1106.03,,Neopost Ltd,NEO003,Corporate Governance,Revenue,"Equip, Furniture And Materials",Mail Services,
http://statistics.data.gov.uk/search?search=E07000114,Thanet District Council,03/10/2017,440367,948.61,,Ocs Group Uk Ltd T/A Fountains,OCS005,Operational Services,Revenue,Fixtures & Fittings,Cleaning And Janitorial,
http://statistics.data.gov.uk/search?search=E07000114,Thanet District Council,03/10/2017,440369,320.70,,Ocs Group Uk Ltd T/A Fountains,OCS005,Operational Services,Revenue,Fixtures & Fittings,Cleaning And Janitorial,
http://statistics.data.gov.uk/search?search=E07000114,Thanet District Council,03/10/2017,440370,18296.90,,Ocs Group Uk Ltd T/A Fountains,OCS005,Operational Services,Revenue,Cleaning & Domestic Supplies,Cleaning And Janitorial,
http://statistics.data.gov.uk/search?search=E07000114,Thanet District Council,03/10/2017,440372,360.75,,Ocs Group Uk Ltd T/A Fountains,OCS005,Operational Services,Revenue,Cleaning & Domestic Supplies,Cleaning And Janitorial,
http://statistics.data.gov.uk/search?search=E07000114,Thanet District Council,03/10/2017,440374,886.71,,Ocs Group Uk Ltd T/A Fountains,OCS005,Corporate Governance,Revenue,Cleaning & Domestic Supplies,Cleaning And Janitorial,
http://statistics.data.gov.uk/search?search=E07000114,Thanet District Council,03/10/2017,439759,6250.00,,Otterham Consulting Limited,OTT004,Corporate Governance,Revenue,Services,Consultancy,
http://statistics.data.gov.uk/search?search=E07000114,Thanet District Council,03/10/2017,440349,1836.00,,Pass Driving School Ltd,PAS003,Corporate Resources and S151,Revenue,Training,Human Resources,
http://statistics.data.gov.uk/search?search=E07000114,Thanet District Council,03/10/2017,440426,2948.00,,Pass Driving School Ltd,PAS003,Corporate Resources and S151,Revenue,Training,Human Resources,
http://statistics.data.gov.uk/search?search=E07000114,Thanet District Council,03/10/2017,440204,468.82,,Premier Paper Group Limited,PRE035,Corporate Governance,Revenue,"Print, Stat And Gen Off Exps",Stationery,
http://statistics.data.gov.uk/search?search=E07000114,Thanet District Council,03/10/2017,439683,315.00,,R Cannon,CAN007,Operational Services,Revenue,Services,Maritime Services,
http://statistics.data.gov.uk/search?search=E07000114,Thanet District Council,03/10/2017,439867,1414.96,,Rexel Uk Limited,REX003,Operational Services,Revenue,"Repairs,  Alter & Mtce - Build",Building Construction Material,
http://statistics.data.gov.uk/search?search=E07000114,Thanet District Council,03/10/2017,440468,814.24,,Scottish Water Business Stream Ltd,SCO019,Corporate Governance,Revenue,Water Services,Utilities,
http://statistics.data.gov.uk/search?search=E07000114,Thanet District Council,03/10/2017,440469,3898.31,,Scottish Water Business Stream Ltd,SCO019,Operational Services,Revenue,Water Services,Utilities,
http://statistics.data.gov.uk/search?search=E07000114,Thanet District Council,03/10/2017,440464,587.40,,Southern Electric,SEL007,Corporate Governance,Revenue,Energy Costs,Utilities,
http://statistics.data.gov.uk/search?search=E07000114,Thanet District Council,03/10/2017,440455,2204.17,,The Glenwood Hotel,GLE007,Community Services,Revenue,Services,Housing Management,
http://statistics.data.gov.uk/search?search=E07000114,Thanet District Council,03/10/2017,440456,3550.02,,The Glenwood Hotel,GLE007,Community Services,Revenue,Services,Housing Management,
http://statistics.data.gov.uk/search?search=E07000114,Thanet District Council,03/10/2017,440458,3237.51,,The Glenwood Hotel,GLE007,Community Services,Revenue,Services,Housing Management,
http://statistics.data.gov.uk/search?search=E07000114,Thanet District Council,03/10/2017,440460,3995.85,,The Glenwood Hotel,GLE007,Community Services,Revenue,Services,Housing Management,
http://statistics.data.gov.uk/search?search=E07000114,Thanet District Council,03/10/2017,439765,226.00,,Veolia Es (Uk) Ltd,VEO001,Corporate Governance,Revenue,Services,Environmental Services,
http://statistics.data.gov.uk/search?search=E07000114,Thanet District Council,06/10/2017,440822,462.00,,All Access Ltd,ALL031,Community Services,Revenue,Services,Building Construction Material,
http://statistics.data.gov.uk/search?search=E07000114,Thanet District Council,06/10/2017,440842,285.00,,C.M.P. Sales & Service Ltd,CMP002,Operational Services,Revenue,"Equip, Furniture And Materials",Financial Services,
http://statistics.data.gov.uk/search?search=E07000114,Thanet District Council,06/10/2017,441171,50000.00,,Capita Business Services Ltd,CAP001,Community Services,Revenue,Communications & Computing,Human Resources,
http://statistics.data.gov.uk/search?search=E07000114,Thanet District Council,06/10/2017,440616,1149.71,,Channel Commercials Plc,CCO001,Operational Services,Revenue,Direct Transport Costs,Vehicle Management,
http://statistics.data.gov.uk/search?search=E07000114,Thanet District Council,06/10/2017,440844,1696.00,,Cobalt Consulting (Uk) Limited,COB004,Corporate Governance,Revenue,Agency Staff,Human Resources,
http://statistics.data.gov.uk/search?search=E07000114,Thanet District Council,06/10/2017,441059,3122.00,,Commercial Services Trading Ltd,COM048,Chief Executive,Revenue,Cont Hire & Operating Lease,Various Cats-Public Sector,
http://statistics.data.gov.uk/search?search=E07000114,Thanet District Council,06/10/2017,440823,231.02,,Dennis Eagle Ltd,DEN005,Operational Services,Revenue,Direct Transport Costs,Vehicle Management,
http://statistics.data.gov.uk/search?search=E07000114,Thanet District Council,06/10/2017,440893,287.15,,Dennis Eagle Ltd,DEN005,Operational Services,Revenue,Direct Transport Costs,Vehicle Management,
http://statistics.data.gov.uk/search?search=E07000114,Thanet District Council,06/10/2017,440387,11462.50,,Dover District Council,DOV001,East Kent Shared Services,Revenue,Services,Various Cats-Public Sector,
http://statistics.data.gov.uk/search?search=E07000114,Thanet District Council,06/10/2017,440394,40940.00,,Dover District Council,DOV001,East Kent Shared Services,Revenue,Services,Various Cats-Public Sector,
http://statistics.data.gov.uk/search?search=E07000114,Thanet District Council,06/10/2017,440316,871.00,,East Cambridgeshire D C,EAS024,Community Services,Revenue,Training,Various Cats-Public Sector,
http://statistics.data.gov.uk/search?search=E07000114,Thanet District Council,06/10/2017,441033,694.49,,Farrer Barnes Limited,FAR012,Corporate Resources and S151,Revenue,Agency Staff,Human Resources,
http://statistics.data.gov.uk/search?search=E07000114,Thanet District Council,06/10/2017,440608,4995.25,,Future-Tech Sci Ltd,FUT001,Corporate Governance,Revenue,"Repairs,  Alter & Mtce - Build",Facilities And Management Serv,
http://statistics.data.gov.uk/search?search=E07000114,Thanet District Council,06/10/2017,439857,15248.18,,Hipperson Builders (M & E) Limited,HIP002,Corporate Resources and S151,Balance Sheet,Council Dwellings,Construction-Repair And Maint,
http://statistics.data.gov.uk/search?search=E07000114,Thanet District Council,06/10/2017,440470,696.94,,Hr Go (Kent) Ltd,HRG001,Operational Services,Revenue,Agency Staff,Human Resources,
http://statistics.data.gov.uk/search?search=E07000114,Thanet District Council,06/10/2017,440471,10312.84,,Hr Go (Kent) Ltd,HRG001,Operational Services,Revenue,Agency Staff,Human Resources,
http://statistics.data.gov.uk/search?search=E07000114,Thanet District Council,06/10/2017,440870,486.55,,Hr Go (Kent) Ltd,HRG001,Operational Services,Revenue,Agency Staff,Human Resources,
http://statistics.data.gov.uk/search?search=E07000114,Thanet District Council,06/10/2017,440872,1475.95,,Hr Go (Kent) Ltd,HRG001,Operational Services,Revenue,Agency Staff,Human Resources,
http://statistics.data.gov.uk/search?search=E07000114,Thanet District Council,06/10/2017,440615,690.35,,Mears Ltd,MEA003,Corporate Governance,Revenue,"Repairs,  Alter & Mtce - Build",Construction-Repair And Maint,
http://statistics.data.gov.uk/search?search=E07000114,Thanet District Council,06/10/2017,440884,229.69,,Mears Ltd,MEA003,Operational Services,Revenue,"Repairs,  Alter & Mtce - Build",Construction-Repair And Maint,
http://statistics.data.gov.uk/search?search=E07000114,Thanet District Council,06/10/2017,440885,1937.02,,Mears Ltd,MEA003,Operational Services,Revenue,"Repairs,  Alter & Mtce - Build",Construction-Repair And Maint,
http://statistics.data.gov.uk/search?search=E07000114,Thanet District Council,06/10/2017,440886,1667.46,,Mears Ltd,MEA003,Operational Services,Revenue,"Repairs,  Alter & Mtce - Build",Construction-Repair And Maint,
http://statistics.data.gov.uk/search?search=E07000114,Thanet District Council,06/10/2017,440887,254.13,,Mears Ltd,MEA003,Operational Services,Revenue,"Repairs,  Alter & Mtce - Build",Construction-Repair And Maint,
http://statistics.data.gov.uk/search?search=E07000114,Thanet District Council,06/10/2017,440888,296.51,,Mears Ltd,MEA003,Community Services,Revenue,"Repairs,  Alter & Mtce - Build",Construction-Repair And Maint,
http://statistics.data.gov.uk/search?search=E07000114,Thanet District Council,06/10/2017,440888,1401.15,,Mears Ltd,MEA003,Corporate Governance,Revenue,"Repairs,  Alter & Mtce - Build",Construction-Repair And Maint,
http://statistics.data.gov.uk/search?search=E07000114,Thanet District Council,06/10/2017,440889,224.58,,Mears Ltd,MEA003,Operational Services,Revenue,"Repairs,  Alter & Mtce - Build",Construction-Repair And Maint,
http://statistics.data.gov.uk/search?search=E07000114,Thanet District Council,06/10/2017,440890,406.91,,Mears Ltd,MEA003,Operational Services,Revenue,"Repairs,  Alter & Mtce - Build",Construction-Repair And Maint,
http://statistics.data.gov.uk/search?search=E07000114,Thanet District Council,06/10/2017,441003,684.64,,Mears Ltd,MEA003,Corporate Resources and S151,Balance Sheet,Repairs And Mtce Holding A/C,Construction-Repair And Maint,
http://statistics.data.gov.uk/search?search=E07000114,Thanet District Council,06/10/2017,441004,4861.39,,Mears Ltd,MEA003,Corporate Resources and S151,Balance Sheet,Repairs And Mtce Holding A/C,Construction-Repair And Maint,
http://statistics.data.gov.uk/search?search=E07000114,Thanet District Council,06/10/2017,441026,234.63,,Mears Ltd,MEA003,Corporate Resources and S151,Balance Sheet,Council Dwellings,Construction-Repair And Maint,
http://statistics.data.gov.uk/search?search=E07000114,Thanet District Council,06/10/2017,440807,7125.00,,Medway Insulations Limited,MED006,Corporate Resources and S151,Balance Sheet,Repairs And Mtce Holding A/C,Environmental Services,
http://statistics.data.gov.uk/search?search=E07000114,Thanet District Council,06/10/2017,440983,300.00,,Michael Page Int Recruitment Ltd,PAG008,Corporate Resources and S151,Revenue,Services,Human Resources,
http://statistics.data.gov.uk/search?search=E07000114,Thanet District Council,06/10/2017,441015,61923.48,,Molyneux Rose Ltd Cl Acc-I/S M'Gate,MOL002,Operational Services,Revenue,Rents,Facilities And Management Serv,
http://statistics.data.gov.uk/search?search=E07000114,Thanet District Council,06/10/2017,441014,50124.24,,Molyneux Rose Ltd Cl Acc-I/S R'Gate,MOL003,Operational Services,Revenue,Rents,Facilities And Management Serv,
http://statistics.data.gov.uk/search?search=E07000114,Thanet District Council,06/10/2017,441019,2104.24,,National Express Ltd,NAT010,Community Services,Revenue,Services,Agency Payments,
http://statistics.data.gov.uk/search?search=E07000114,Thanet District Council,06/10/2017,440364,736.32,,Ocs Group Uk Ltd T/A Fountains,OCS005,Operational Services,Revenue,Cleaning & Domestic Supplies,Cleaning And Janitorial,
http://statistics.data.gov.uk/search?search=E07000114,Thanet District Council,06/10/2017,439298,14454.00,,Parkeon Limited,PAR063,Operational Services,Revenue,"Equip, Furniture And Materials",Street And Traffic Management,
http://statistics.data.gov.uk/search?search=E07000114,Thanet District Council,06/10/2017,440859,90.00,,Parkeon Limited,PAR063,Corporate Governance,Revenue,"Equip, Furniture And Materials",Street And Traffic Management,
http://statistics.data.gov.uk/search?search=E07000114,Thanet District Council,06/10/2017,440859,1424.85,,Parkeon Limited,PAR063,Operational Services,Revenue,"Equip, Furniture And Materials",Street And Traffic Management,
http://statistics.data.gov.uk/search?search=E07000114,Thanet District Council,06/10/2017,441098,-1584.00,,Parkeon Limited,PAR063,Operational Services,Revenue,"Equip, Furniture And Materials",Street And Traffic Management,
http://statistics.data.gov.uk/search?search=E07000114,Thanet District Council,06/10/2017,441105,1584.00,,Parkeon Limited,PAR063,Operational Services,Revenue,"Equip, Furniture And Materials",Street And Traffic Management,
http://statistics.data.gov.uk/search?search=E07000114,Thanet District Council,06/10/2017,440846,737.00,,Pass Driving School Ltd,PAS003,Corporate Resources and S151,Revenue,Training,Human Resources,
http://statistics.data.gov.uk/search?search=E07000114,Thanet District Council,06/10/2017,440323,1750.00,,Paul Shadarevian,SHA031,Community Services,Revenue,Services,Human Resources,
http://statistics.data.gov.uk/search?search=E07000114,Thanet District Council,06/10/2017,440900,405.00,,Seaward Color Copy Ltd,SEA001,Community Services,Revenue,"Equip, Furniture And Materials",Facilities And Management Serv,
http://statistics.data.gov.uk/search?search=E07000114,Thanet District Council,06/10/2017,439880,1143.75,,Southern Electric,SEL007,Operational Services,Revenue,Energy Costs,Utilities,
http://statistics.data.gov.uk/search?search=E07000114,Thanet District Council,06/10/2017,441076,279.90,,Southern Electric,SEL007,Operational Services,Revenue,Energy Costs,Utilities,
http://statistics.data.gov.uk/search?search=E07000114,Thanet District Council,06/10/2017,441077,-1143.75,,Southern Electric,SEL007,Operational Services,Revenue,Energy Costs,Utilities,
http://statistics.data.gov.uk/search?search=E07000114,Thanet District Council,06/10/2017,441094,1118.90,,Southern Electric,SEL007,Community Services,Revenue,Energy Costs,Utilities,
http://statistics.data.gov.uk/search?search=E07000114,Thanet District Council,10/10/2017,441351,2545.00,,Access & Automation Limited,ACC012,Corporate Resources and S151,Balance Sheet,Capital Exp-Non Council Assets,Facilities And Management Serv,
http://statistics.data.gov.uk/search?search=E07000114,Thanet District Council,10/10/2017,440874,5600.00,,Accordio Limited,ACC010,East Kent Shared Services,Revenue,Services,Consultancy,
http://statistics.data.gov.uk/search?search=E07000114,Thanet District Council,10/10/2017,441284,293.63,,Adecco Uk Ltd,ADE005,Chief Executive,Revenue,Agency Staff,Human Resources,
http://statistics.data.gov.uk/search?search=E07000114,Thanet District Council,10/10/2017,440286,640.00,,Albion Fencing&Construction Kent Ltd,ALB005,Operational Services,Revenue,"Equip, Furniture And Materials",Building Construction Material,
http://statistics.data.gov.uk/search?search=E07000114,Thanet District Council,10/10/2017,441018,330.00,,Andy Morris,MOR028,Community Services,Revenue,Services,Arts And Leisure Services,
http://statistics.data.gov.uk/search?search=E07000114,Thanet District Council,10/10/2017,440281,393.69,,Arco Limited,ARC001,Corporate Resources and S151,Revenue,"Clothes, Uniforms & Laundry",Clothing,
http://statistics.data.gov.uk/search?search=E07000114,Thanet District Council,10/10/2017,440281,393.69,,Arco Limited,ARC001,Operational Services,Revenue,"Clothes, Uniforms & Laundry",Clothing,
http://statistics.data.gov.uk/search?search=E07000114,Thanet District Council,10/10/2017,441053,2020.00,,B & B 63,BB6001,Community Services,Revenue,Services,Housing Management,
http://statistics.data.gov.uk/search?search=E07000114,Thanet District Council,10/10/2017,441344,2124.00,,Broadstairs Gas Services Ltd,BRO083,Corporate Resources and S151,Balance Sheet,Capital Exp-Non Council Assets,Grants,
http://statistics.data.gov.uk/search?search=E07000114,Thanet District Council,10/10/2017,440796,19878.33,,Canterbury City Council,CAN004,East Kent Shared Services,Revenue,Grants & Subscriptions,Various Cats-Public Sector,
http://statistics.data.gov.uk/search?search=E07000114,Thanet District Council,10/10/2017,440845,3415.50,,Certas Energy Uk Ltd,CER005,Operational Services,Revenue,"Equip, Furniture And Materials",Vehicle Management,
http://statistics.data.gov.uk/search?search=E07000114,Thanet District Council,10/10/2017,441348,46000.00,,Citizens Advice Thanet,CIT016,Community Services,Revenue,Grants & Subscriptions,Human Resources,
http://statistics.data.gov.uk/search?search=E07000114,Thanet District Council,10/10/2017,441151,308.00,,Disclosure And Barring Service,DIS017,Community Services,Revenue,"Equip, Furniture And Materials",Human Resources,
http://statistics.data.gov.uk/search?search=E07000114,Thanet District Council,10/10/2017,441353,4600.00,,Dolphin Lifts Kent,DOL003,Corporate Resources and S151,Balance Sheet,Capital Exp-Non Council Assets,Grants,
http://statistics.data.gov.uk/search?search=E07000114,Thanet District Council,10/10/2017,440420,360.00,,Dover Counselling Centre,DOV014,East Kent Shared Services,Revenue,Employee Related Schemes,Healthcare,
http://statistics.data.gov.uk/search?search=E07000114,Thanet District Council,10/10/2017,440401,17081.81,,Dover District Council,DOV001,Corporate Resources and S151,Revenue,Services,Various Cats-Public Sector,
http://statistics.data.gov.uk/search?search=E07000114,Thanet District Council,10/10/2017,440412,68633.55,,Dover District Council,DOV001,Corporate Resources and S151,Revenue,Services,Various Cats-Public Sector,
http://statistics.data.gov.uk/search?search=E07000114,Thanet District Council,10/10/2017,441007,15060.83,,E Saunders Margate Ltd,SAU001,Operational Services,Revenue,"Repairs,  Alter & Mtce - Build",Construction-Repair And Maint,
http://statistics.data.gov.uk/search?search=E07000114,Thanet District Council,10/10/2017,441355,1908.26,,Evermech Services Ltd,EVE011,Corporate Resources and S151,Balance Sheet,Capital Exp-Non Council Assets,Grants,
http://statistics.data.gov.uk/search?search=E07000114,Thanet District Council,10/10/2017,440620,350.30,,Eyeball Signs,EYE002,Operational Services,Revenue,"Equip, Furniture And Materials",Facilities And Management Serv,
http://statistics.data.gov.uk/search?search=E07000114,Thanet District Council,10/10/2017,439866,2640.00,,Faithorn Farrell Timms Llp,FAI007,Corporate Resources and S151,Balance Sheet,Council Dwellings,Consultancy,
http://statistics.data.gov.uk/search?search=E07000114,Thanet District Council,10/10/2017,441002,880.00,,Faithorn Farrell Timms Llp,FAI007,Corporate Resources and S151,Balance Sheet,Council Dwellings,Consultancy,
http://statistics.data.gov.uk/search?search=E07000114,Thanet District Council,10/10/2017,441347,263.44,,Family Mosaic Housing,FAM001,Corporate Resources and S151,Balance Sheet,Capital Exp-Non Council Assets,Housing Management,
http://statistics.data.gov.uk/search?search=E07000114,Thanet District Council,10/10/2017,441350,939.62,,Family Mosaic Housing,FAM001,Corporate Resources and S151,Balance Sheet,Capital Exp-Non Council Assets,Housing Management,
http://statistics.data.gov.uk/search?search=E07000114,Thanet District Council,10/10/2017,441352,305.40,,Family Mosaic Housing,FAM001,Corporate Resources and S151,Balance Sheet,Capital Exp-Non Council Assets,Housing Management,
http://statistics.data.gov.uk/search?search=E07000114,Thanet District Council,10/10/2017,441354,508.00,,Family Mosaic Housing,FAM001,Corporate Resources and S151,Balance Sheet,Capital Exp-Non Council Assets,Housing Management,
http://statistics.data.gov.uk/search?search=E07000114,Thanet District Council,10/10/2017,441209,652.41,,Farrer Barnes Limited,FAR012,Corporate Resources and S151,Revenue,Agency Staff,Human Resources,
http://statistics.data.gov.uk/search?search=E07000114,Thanet District Council,10/10/2017,440319,1083.50,,Gb Sport & Leisure Uk Ltd,GBS002,Operational Services,Revenue,"Equip, Furniture And Materials",Sports Playground Equipment,
http://statistics.data.gov.uk/search?search=E07000114,Thanet District Council,10/10/2017,440883,420.00,,Graffiti Removal Ltd,GRA039,Operational Services,Revenue,"Equip, Furniture And Materials",Cleaning And Janitorial,
http://statistics.data.gov.uk/search?search=E07000114,Thanet District Council,10/10/2017,441343,8886.28,,Hfd Construction,HFD001,Corporate Resources and S151,Balance Sheet,Capital Exp-Non Council Assets,Grants,
http://statistics.data.gov.uk/search?search=E07000114,Thanet District Council,10/10/2017,440868,1304.50,,High Five Training Limited,HIG009,Operational Services,Revenue,Training,Human Resources,
http://statistics.data.gov.uk/search?search=E07000114,Thanet District Council,10/10/2017,441346,2594.40,,Howe Heating & Plumbing,HOW019,Corporate Resources and S151,Balance Sheet,Capital Exp-Non Council Assets,Grants,
http://statistics.data.gov.uk/search?search=E07000114,Thanet District Council,10/10/2017,440357,377.40,,Hr Go (Kent) Ltd,HRG001,Operational Services,Revenue,Agency Staff,Human Resources,
http://statistics.data.gov.uk/search?search=E07000114,Thanet District Council,10/10/2017,440869,377.40,,Hr Go (Kent) Ltd,HRG001,Operational Services,Revenue,Agency Staff,Human Resources,
http://statistics.data.gov.uk/search?search=E07000114,Thanet District Council,10/10/2017,440873,1469.22,,Hr Go (Kent) Ltd,HRG001,Operational Services,Revenue,Agency Staff,Human Resources,
http://statistics.data.gov.uk/search?search=E07000114,Thanet District Council,10/10/2017,441056,2477.00,,Hydrosphere Uk Limited,HYD009,Operational Services,Revenue,"Equip, Furniture And Materials",Vehicle Management,
http://statistics.data.gov.uk/search?search=E07000114,Thanet District Council,10/10/2017,440219,362.76,,Jewson Ltd,JEW001,Operational Services,Revenue,"Equip, Furniture And Materials",Building Construction Material,
http://statistics.data.gov.uk/search?search=E07000114,Thanet District Council,10/10/2017,440221,799.00,,Jewson Ltd,JEW001,Operational Services,Revenue,"Equip, Furniture And Materials",Building Construction Material,
http://statistics.data.gov.uk/search?search=E07000114,Thanet District Council,10/10/2017,440660,644.00,,John Reeve (Plant Hire) Ltd,REE013,Operational Services,Revenue,Cont Hire & Operating Lease,Vehicle Management,
http://statistics.data.gov.uk/search?search=E07000114,Thanet District Council,10/10/2017,440810,472.50,,John Reeve (Plant Hire) Ltd,REE013,Operational Services,Revenue,Cont Hire & Operating Lease,Vehicle Management,
http://statistics.data.gov.uk/search?search=E07000114,Thanet District Council,10/10/2017,441095,1012.50,,John Reeve (Plant Hire) Ltd,REE013,Operational Services,Revenue,Cont Hire & Operating Lease,Vehicle Management,
http://statistics.data.gov.uk/search?search=E07000114,Thanet District Council,10/10/2017,440985,3192.00,,Kent County Council,KCC002,Community Services,Revenue,Services,Various Cats-Public Sector,
http://statistics.data.gov.uk/search?search=E07000114,Thanet District Council,10/10/2017,441273,1500.00,,Kent County Council,KCC002,Corporate Resources and S151,Revenue,Grants & Subscriptions,Various Cats-Public Sector,
http://statistics.data.gov.uk/search?search=E07000114,Thanet District Council,10/10/2017,440289,1182.22,,Killgerm Chemicals Limited,KIL001,Operational Services,Revenue,Training,Horticultural,
http://statistics.data.gov.uk/search?search=E07000114,Thanet District Council,10/10/2017,441221,1749.19,,Level 3 Communications (Uk) Ltd,LEV005,Corporate Resources and S151,Balance Sheet,Telephone Holding Account,ICT,
http://statistics.data.gov.uk/search?search=E07000114,Thanet District Council,10/10/2017,440601,509.80,,Main Man Supplies Ltd,MAI001,Operational Services,Revenue,"Clothes, Uniforms & Laundry",Clothing,
http://statistics.data.gov.uk/search?search=E07000114,Thanet District Council,10/10/2017,440901,275.39,,Mears Ltd,MEA003,Corporate Resources and S151,Balance Sheet,Council Dwellings,Construction-Repair And Maint,
http://statistics.data.gov.uk/search?search=E07000114,Thanet District Council,10/10/2017,441119,11056.21,,Mears Ltd,MEA003,Corporate Resources and S151,Balance Sheet,Repairs And Mtce Holding A/C,Construction-Repair And Maint,
http://statistics.data.gov.uk/search?search=E07000114,Thanet District Council,10/10/2017,441120,1640.35,,Mears Ltd,MEA003,Corporate Resources and S151,Balance Sheet,Repairs And Mtce Holding A/C,Construction-Repair And Maint,
http://statistics.data.gov.uk/search?search=E07000114,Thanet District Council,10/10/2017,441121,24450.05,,Mears Ltd,MEA003,Corporate Resources and S151,Balance Sheet,Repairs And Mtce Holding A/C,Construction-Repair And Maint,
http://statistics.data.gov.uk/search?search=E07000114,Thanet District Council,10/10/2017,441122,24791.95,,Mears Ltd,MEA003,Corporate Resources and S151,Balance Sheet,Repairs And Mtce Holding A/C,Construction-Repair And Maint,
http://statistics.data.gov.uk/search?search=E07000114,Thanet District Council,10/10/2017,441123,1212.04,,Mears Ltd,MEA003,Corporate Resources and S151,Balance Sheet,Repairs And Mtce Holding A/C,Construction-Repair And Maint,
http://statistics.data.gov.uk/search?search=E07000114,Thanet District Council,10/10/2017,441124,4111.47,,Mears Ltd,MEA003,Corporate Resources and S151,Balance Sheet,Repairs And Mtce Holding A/C,Construction-Repair And Maint,
http://statistics.data.gov.uk/search?search=E07000114,Thanet District Council,10/10/2017,441125,3570.84,,Mears Ltd,MEA003,Corporate Resources and S151,Balance Sheet,Repairs And Mtce Holding A/C,Construction-Repair And Maint,
http://statistics.data.gov.uk/search?search=E07000114,Thanet District Council,10/10/2017,441126,27322.00,,Mears Ltd,MEA003,Corporate Resources and S151,Balance Sheet,Repairs And Mtce Holding A/C,Construction-Repair And Maint,
http://statistics.data.gov.uk/search?search=E07000114,Thanet District Council,10/10/2017,440291,209.44,,Morgan Jones Ltd,MOR001,Corporate Governance,Revenue,Agency Staff,Human Resources,
http://statistics.data.gov.uk/search?search=E07000114,Thanet District Council,10/10/2017,440664,314.16,,Morgan Jones Ltd,MOR001,Corporate Governance,Revenue,Agency Staff,Human Resources,
http://statistics.data.gov.uk/search?search=E07000114,Thanet District Council,10/10/2017,441163,314.16,,Morgan Jones Ltd,MOR001,Corporate Governance,Revenue,Agency Staff,Human Resources,
http://statistics.data.gov.uk/search?search=E07000114,Thanet District Council,10/10/2017,441152,69.17,,Mr Darren Osborne,OSB008,Community Services,Revenue,Cleaning & Domestic Supplies,Cleaning And Janitorial,
http://statistics.data.gov.uk/search?search=E07000114,Thanet District Council,10/10/2017,441152,398.33,,Mr Darren Osborne,OSB008,Corporate Governance,Revenue,Cleaning & Domestic Supplies,Cleaning And Janitorial,
http://statistics.data.gov.uk/search?search=E07000114,Thanet District Council,10/10/2017,441152,40.00,,Mr Darren Osborne,OSB008,Operational Services,Revenue,Cleaning & Domestic Supplies,Cleaning And Janitorial,
http://statistics.data.gov.uk/search?search=E07000114,Thanet District Council,10/10/2017,441021,840.00,,Oak Housing Limited,OAK008,Community Services,Revenue,Services,Housing Management,
http://statistics.data.gov.uk/search?search=E07000114,Thanet District Council,10/10/2017,440855,423.12,,Oracle Corporation Uk Ltd,ORA001,East Kent Shared Services,Revenue,Communications & Computing,ICT,
http://statistics.data.gov.uk/search?search=E07000114,Thanet District Council,10/10/2017,440989,272.00,,Orbital Net Ltd,ORB008,Corporate Resources and S151,Revenue,Communications & Computing,ICT,
http://statistics.data.gov.uk/search?search=E07000114,Thanet District Council,10/10/2017,441097,130055.00,,Paramount Ind Property Services Llp,PAR074,Community Services,Revenue,Services,Housing Management,
http://statistics.data.gov.uk/search?search=E07000114,Thanet District Council,10/10/2017,441136,557.47,,Parkeon Limited,PAR063,Operational Services,Revenue,"Equip, Furniture And Materials",Street And Traffic Management,
http://statistics.data.gov.uk/search?search=E07000114,Thanet District Council,10/10/2017,440617,465.00,,Probrand Ltd,PRO012,East Kent Shared Services,Revenue,Communications & Computing,ICT,
http://statistics.data.gov.uk/search?search=E07000114,Thanet District Council,10/10/2017,440849,24021.26,,Profile Security Services Limited,PRO018,Operational Services,Revenue,Services,Facilities And Management Serv,
http://statistics.data.gov.uk/search?search=E07000114,Thanet District Council,10/10/2017,440978,429.49,,Profile Security Services Limited,PRO018,Operational Services,Revenue,Services,Facilities And Management Serv,
http://statistics.data.gov.uk/search?search=E07000114,Thanet District Council,10/10/2017,440208,682.50,,R Cannon,CAN007,Operational Services,Revenue,Services,Maritime Services,
http://statistics.data.gov.uk/search?search=E07000114,Thanet District Council,10/10/2017,440594,800.00,,R J Broadley Tree Surgery,RJB002,Operational Services,Revenue,Grounds Mtce Costs,Horticultural,
http://statistics.data.gov.uk/search?search=E07000114,Thanet District Council,10/10/2017,440596,420.00,,R J Broadley Tree Surgery,RJB002,Operational Services,Revenue,Grounds Mtce Costs,Horticultural,
http://statistics.data.gov.uk/search?search=E07000114,Thanet District Council,10/10/2017,440597,750.00,,R J Broadley Tree Surgery,RJB002,Operational Services,Revenue,Grounds Mtce Costs,Horticultural,
http://statistics.data.gov.uk/search?search=E07000114,Thanet District Council,10/10/2017,440624,280.00,,Roberts Stonemasons Ltd,ROB001,Operational Services,Revenue,"Equip, Furniture And Materials",Cemetery And Crematorium,
http://statistics.data.gov.uk/search?search=E07000114,Thanet District Council,10/10/2017,441050,1050.00,,Schellenburg Guesthouse,SCH008,Community Services,Revenue,Services,Housing Management,
http://statistics.data.gov.uk/search?search=E07000114,Thanet District Council,10/10/2017,440225,299.98,,Screwfix Direct Ltd,SCR001,Operational Services,Revenue,"Equip, Furniture And Materials",Building Construction Material,
http://statistics.data.gov.uk/search?search=E07000114,Thanet District Council,10/10/2017,440268,3195.00,,Sellick Partnership Ltd,SEL011,Corporate Governance,Revenue,Services,Human Resources,
http://statistics.data.gov.uk/search?search=E07000114,Thanet District Council,10/10/2017,440610,2556.00,,Sellick Partnership Ltd,SEL011,Corporate Governance,Revenue,Services,Human Resources,
http://statistics.data.gov.uk/search?search=E07000114,Thanet District Council,10/10/2017,440877,2556.00,,Sellick Partnership Ltd,SEL011,Corporate Governance,Revenue,Services,Human Resources,
http://statistics.data.gov.uk/search?search=E07000114,Thanet District Council,10/10/2017,441356,3740.54,,South East Building Company Limited,SEB001,Corporate Resources and S151,Balance Sheet,Capital Exp-Non Council Assets,Grants,
http://statistics.data.gov.uk/search?search=E07000114,Thanet District Council,10/10/2017,440241,242.02,,Southern Electric,SEL007,Community Services,Revenue,Energy Costs,Utilities,
http://statistics.data.gov.uk/search?search=E07000114,Thanet District Council,10/10/2017,440390,324.00,,Thanet Waste Services Ltd,TWA001,Operational Services,Revenue,"Repairs,  Alter & Mtce - Build",Environmental Services,
http://statistics.data.gov.uk/search?search=E07000114,Thanet District Council,10/10/2017,441037,3995.83,,The Glenwood Hotel,GLE007,Community Services,Revenue,Services,Housing Management,
http://statistics.data.gov.uk/search?search=E07000114,Thanet District Council,10/10/2017,441038,3100.01,,The Glenwood Hotel,GLE007,Community Services,Revenue,Services,Housing Management,
http://statistics.data.gov.uk/search?search=E07000114,Thanet District Council,10/10/2017,441039,3554.18,,The Glenwood Hotel,GLE007,Community Services,Revenue,Services,Housing Management,
http://statistics.data.gov.uk/search?search=E07000114,Thanet District Council,10/10/2017,441040,2512.51,,The Glenwood Hotel,GLE007,Community Services,Revenue,Services,Housing Management,
http://statistics.data.gov.uk/search?search=E07000114,Thanet District Council,10/10/2017,441028,712.50,,The Natural Solution Cleaning Co Ltd,NAT030,Operational Services,Revenue,"Repairs,  Alter & Mtce - Build",Cleaning And Janitorial,
http://statistics.data.gov.uk/search?search=E07000114,Thanet District Council,10/10/2017,441349,7830.22,,Trueden Disability Adaptations Ltd,TRU012,Corporate Resources and S151,Balance Sheet,Capital Exp-Non Council Assets,Grants,
http://statistics.data.gov.uk/search?search=E07000114,Thanet District Council,10/10/2017,441022,772.49,,Uk Power Networks Services (Comm)Ltd,UKP003,Operational Services,Revenue,Energy Costs,Utilities,
http://statistics.data.gov.uk/search?search=E07000114,Thanet District Council,10/10/2017,440614,497.97,,Uplands Engineering Ltd,UPL001,Operational Services,Revenue,"Repairs,  Alter & Mtce - Build",Maritime Services,
http://statistics.data.gov.uk/search?search=E07000114,Thanet District Council,10/10/2017,440340,1591.00,,Venn Group Limited,VEN004,Corporate Governance,Revenue,Services,Human Resources,
http://statistics.data.gov.uk/search?search=E07000114,Thanet District Council,10/10/2017,441147,1496.00,,Venn Group Limited,VEN004,Corporate Governance,Revenue,Services,Human Resources,
http://statistics.data.gov.uk/search?search=E07000114,Thanet District Council,10/10/2017,440459,308.47,,W G Burbridge,BUR016,Operational Services,Revenue,"Equip, Furniture And Materials",Building Construction Material,
http://statistics.data.gov.uk/search?search=E07000114,Thanet District Council,10/10/2017,441360,9999.00,,Wicksteed Leisure Ltd,WIC002,Operational Services,Revenue,"Repairs,  Alter & Mtce - Build",Sports Playground Equipment,
http://statistics.data.gov.uk/search?search=E07000114,Thanet District Council,10/10/2017,441361,9971.20,,Wicksteed Leisure Ltd,WIC002,Operational Services,Revenue,"Repairs,  Alter & Mtce - Build",Sports Playground Equipment,
http://statistics.data.gov.uk/search?search=E07000114,Thanet District Council,10/10/2017,440825,2135.87,,Xchanging Global Insurance Sols Ltd,XCH001,East Kent Shared Services,Revenue,Communications & Computing,ICT,
http://statistics.data.gov.uk/search?search=E07000114,Thanet District Council,13/10/2017,441575,1124.75,,Compliance Online Limited,COM055,Corporate Resources and S151,Revenue,Expenses,Financial Services,
http://statistics.data.gov.uk/search?search=E07000114,Thanet District Council,13/10/2017,441587,512.00,,Norfolk County Council,NCC002,Community Services,Revenue,Services,Various Cats-Public Sector,
http://statistics.data.gov.uk/search?search=E07000114,Thanet District Council,13/10/2017,440235,1658.00,,Sharpe Pritchard Llp,SHA030,Corporate Resources and S151,Balance Sheet,Other Land And Buildings-Hra,Legal Services,
http://statistics.data.gov.uk/search?search=E07000114,Thanet District Council,13/10/2017,441582,3775.00,,The Housing Ombudsman,HOU013,Community Services,Revenue,Grants & Subscriptions,Human Resources,
http://statistics.data.gov.uk/search?search=E07000114,Thanet District Council,13/10/2017,440293,697.00,,Thomson Reuters,THO043,Corporate Governance,Revenue,"Print, Stat And Gen Off Exps",Human Resources,
http://statistics.data.gov.uk/search?search=E07000114,Thanet District Council,17/10/2017,441107,650.32,,A W Warner & Sons Ltd,WAR006,Operational Services,Revenue,"Repairs,  Alter & Mtce - Build",Horticultural,
http://statistics.data.gov.uk/search?search=E07000114,Thanet District Council,17/10/2017,441195,875.00,,All About Asbestos Limited,ALL044,Corporate Governance,Revenue,"Repairs,  Alter & Mtce - Build",Environmental Services,
http://statistics.data.gov.uk/search?search=E07000114,Thanet District Council,17/10/2017,441017,350.00,,Andy Morris,MOR028,Community Services,Revenue,Services,Arts And Leisure Services,
http://statistics.data.gov.uk/search?search=E07000114,Thanet District Council,17/10/2017,441140,340.00,,Astra Uk (Contracts) Ltd,AST003,Operational Services,Revenue,Cleaning & Domestic Supplies,Environmental Services,
http://statistics.data.gov.uk/search?search=E07000114,Thanet District Council,17/10/2017,440899,19316.25,,Avia Solutions Limited,AVI004,Community Services,Revenue,Services,Consultancy,
http://statistics.data.gov.uk/search?search=E07000114,Thanet District Council,17/10/2017,441020,325.00,,Benchmarq Limited,BEN013,Operational Services,Revenue,Communications & Computing,ICT,
http://statistics.data.gov.uk/search?search=E07000114,Thanet District Council,17/10/2017,441175,407.94,,Bowman Maintenance Contracting,BMC001,Operational Services,Revenue,"Repairs,  Alter & Mtce - Build",Building Construction Material,
http://statistics.data.gov.uk/search?search=E07000114,Thanet District Council,17/10/2017,441760,10948.09,,Bramling Construction Ltd,BRA020,Corporate Resources and S151,Balance Sheet,Capital Exp-Non Council Assets,Grants,
http://statistics.data.gov.uk/search?search=E07000114,Thanet District Council,17/10/2017,440850,1233.75,,Buckingham Futures Limited,BUC010,Community Services,Revenue,Agency Staff,Human Resources,
http://statistics.data.gov.uk/search?search=E07000114,Thanet District Council,17/10/2017,440851,1032.50,,Buckingham Futures Limited,BUC010,Community Services,Revenue,Agency Staff,Human Resources,
http://statistics.data.gov.uk/search?search=E07000114,Thanet District Council,17/10/2017,441148,1470.00,,Buckingham Futures Limited,BUC010,Community Services,Revenue,Agency Staff,Human Resources,
http://statistics.data.gov.uk/search?search=E07000114,Thanet District Council,17/10/2017,441149,1295.00,,Buckingham Futures Limited,BUC010,Community Services,Revenue,Agency Staff,Human Resources,
http://statistics.data.gov.uk/search?search=E07000114,Thanet District Council,17/10/2017,441141,1074.60,,Carol Peters,PET003,Community Services,Revenue,Services,Agency Payments,
http://statistics.data.gov.uk/search?search=E07000114,Thanet District Council,17/10/2017,441143,1944.00,,Carol Peters,PET003,Community Services,Revenue,Services,Agency Payments,
http://statistics.data.gov.uk/search?search=E07000114,Thanet District Council,17/10/2017,441329,750.00,,Caxtons Commercial Ltd,CAX006,Corporate Governance,Revenue,Services,Consultancy,
http://statistics.data.gov.uk/search?search=E07000114,Thanet District Council,17/10/2017,441332,980.00,,Chartered Institute Of Housing,CHA008,Community Services,Revenue,Expenses,Human Resources,
http://statistics.data.gov.uk/search?search=E07000114,Thanet District Council,17/10/2017,441540,323.75,,Cipfa Business Ltd,CIP008,Corporate Resources and S151,Revenue,"Print, Stat And Gen Off Exps",Financial Services,
http://statistics.data.gov.uk/search?search=E07000114,Thanet District Council,17/10/2017,440898,30067.02,,Civica Uk Ltd,CIV003,Corporate Resources and S151,Revenue,Communications & Computing,ICT,
http://statistics.data.gov.uk/search?search=E07000114,Thanet District Council,17/10/2017,441180,1200.00,,Civica Uk Ltd,CIV003,East Kent Shared Services,Revenue,Communications & Computing,ICT,
http://statistics.data.gov.uk/search?search=E07000114,Thanet District Council,17/10/2017,441559,4300.00,,Civica Uk Ltd,CIV003,East Kent Shared Services,Revenue,Communications & Computing,ICT,
http://statistics.data.gov.uk/search?search=E07000114,Thanet District Council,17/10/2017,441560,1200.00,,Civica Uk Ltd,CIV003,East Kent Shared Services,Revenue,Communications & Computing,ICT,
http://statistics.data.gov.uk/search?search=E07000114,Thanet District Council,17/10/2017,441586,19200.00,,Civica Uk Ltd,CIV003,East Kent Shared Services,Revenue,Communications & Computing,ICT,
http://statistics.data.gov.uk/search?search=E07000114,Thanet District Council,17/10/2017,441231,1696.00,,Cobalt Consulting (Uk) Limited,COB004,Corporate Governance,Revenue,Agency Staff,Human Resources,
http://statistics.data.gov.uk/search?search=E07000114,Thanet District Council,17/10/2017,441156,420.48,,Cobalt Telephone Technologies Ltd,COB002,Operational Services,Revenue,Services,ICT,
http://statistics.data.gov.uk/search?search=E07000114,Thanet District Council,17/10/2017,441157,3591.80,,Cobalt Telephone Technologies Ltd,COB002,Operational Services,Revenue,Services,ICT,
http://statistics.data.gov.uk/search?search=E07000114,Thanet District Council,17/10/2017,441139,4500.00,,Daedalus Environmental Ltd,DAE001,Community Services,Revenue,Services,Consultancy,
http://statistics.data.gov.uk/search?search=E07000114,Thanet District Council,17/10/2017,441102,341.67,,Dennis Eagle Ltd,DEN005,Operational Services,Revenue,Direct Transport Costs,Vehicle Management,
http://statistics.data.gov.uk/search?search=E07000114,Thanet District Council,17/10/2017,441752,13250.00,,Dolphin Lifts Kent,DOL003,Corporate Resources and S151,Balance Sheet,Capital Exp-Non Council Assets,Grants,
http://statistics.data.gov.uk/search?search=E07000114,Thanet District Council,17/10/2017,441756,4700.00,,Dolphin Lifts Kent,DOL003,Corporate Resources and S151,Balance Sheet,Capital Exp-Non Council Assets,Grants,
http://statistics.data.gov.uk/search?search=E07000114,Thanet District Council,17/10/2017,440419,155.00,,Dover Counselling Centre,DOV014,Corporate Resources and S151,Revenue,Employee Related Schemes,Healthcare,
http://statistics.data.gov.uk/search?search=E07000114,Thanet District Council,17/10/2017,440419,205.00,,Dover Counselling Centre,DOV014,Operational Services,Revenue,Employee Related Schemes,Healthcare,
http://statistics.data.gov.uk/search?search=E07000114,Thanet District Council,17/10/2017,440243,1976.83,,Dover District Council,DOV001,Corporate Resources and S151,Revenue,Communications & Computing,Various Cats-Public Sector,
http://statistics.data.gov.uk/search?search=E07000114,Thanet District Council,17/10/2017,441744,1750.00,,Dr Alexander Marshall,MAR100,Operational Services,Revenue,Services,Cemetery And Crematorium,
http://statistics.data.gov.uk/search?search=E07000114,Thanet District Council,17/10/2017,441373,320.40,,Edge Enviro Services Ltd,EDG001,Operational Services,Revenue,"Repairs,  Alter & Mtce - Build",Human Resources,
http://statistics.data.gov.uk/search?search=E07000114,Thanet District Council,17/10/2017,441144,3010.89,,Electoral Reform Services,ELE010,Corporate Governance,Revenue,"Print, Stat And Gen Off Exps",Facilities And Management Serv,
http://statistics.data.gov.uk/search?search=E07000114,Thanet District Council,17/10/2017,441145,418.43,,Electoral Reform Services,ELE010,Corporate Governance,Revenue,"Print, Stat And Gen Off Exps",Facilities And Management Serv,
http://statistics.data.gov.uk/search?search=E07000114,Thanet District Council,17/10/2017,441745,1018.16,,Electoral Reform Services,ELE010,Corporate Governance,Revenue,"Print, Stat And Gen Off Exps",Facilities And Management Serv,
http://statistics.data.gov.uk/search?search=E07000114,Thanet District Council,17/10/2017,441294,219.00,,Electrical Lighting Solutions Ltd,ELE013,Operational Services,Revenue,"Repairs,  Alter & Mtce - Build",Building Construction Material,
http://statistics.data.gov.uk/search?search=E07000114,Thanet District Council,17/10/2017,441759,8824.53,,Evermech Services Ltd,EVE011,Corporate Resources and S151,Balance Sheet,Capital Exp-Non Council Assets,Grants,
http://statistics.data.gov.uk/search?search=E07000114,Thanet District Council,17/10/2017,441224,8116.20,,F M Conway Ltd,CON043,Operational Services,Revenue,"Repairs,  Alter & Mtce - Build",Construction-Repair And Maint,
http://statistics.data.gov.uk/search?search=E07000114,Thanet District Council,17/10/2017,441521,694.49,,Farrer Barnes Limited,FAR012,Corporate Resources and S151,Revenue,Agency Staff,Human Resources,
http://statistics.data.gov.uk/search?search=E07000114,Thanet District Council,17/10/2017,441522,643.69,,Farrer Barnes Limited,FAR012,Corporate Resources and S151,Revenue,Agency Staff,Human Resources,
http://statistics.data.gov.uk/search?search=E07000114,Thanet District Council,17/10/2017,439038,1920.00,,Freight Transport Association,FRE007,Operational Services,Revenue,Training,Human Resources,
http://statistics.data.gov.uk/search?search=E07000114,Thanet District Council,17/10/2017,441190,262.02,,G & G Forklifts,GGF001,Operational Services,Revenue,"Equip, Furniture And Materials",Vehicle Management,
http://statistics.data.gov.uk/search?search=E07000114,Thanet District Council,17/10/2017,441191,662.29,,G & G Forklifts,GGF001,Operational Services,Revenue,"Equip, Furniture And Materials",Vehicle Management,
http://statistics.data.gov.uk/search?search=E07000114,Thanet District Council,17/10/2017,441193,232.82,,G & G Forklifts,GGF001,Operational Services,Revenue,"Equip, Furniture And Materials",Vehicle Management,
http://statistics.data.gov.uk/search?search=E07000114,Thanet District Council,17/10/2017,441146,1142.99,,Gefco Uk Limited,GEF001,Operational Services,Revenue,Miscellaneous Expenses,Financial Services,
http://statistics.data.gov.uk/search?search=E07000114,Thanet District Council,17/10/2017,440600,4700.00,,Gerlack & Thorne Ltd,GER001,Corporate Resources and S151,Balance Sheet,Other Land And Buildings-Hra,Construction-Repair And Maint,
http://statistics.data.gov.uk/search?search=E07000114,Thanet District Council,17/10/2017,441764,355.00,,H M Courts & Tribunals Service,HMC006,Community Services,Revenue,Services,Government Agencies,
http://statistics.data.gov.uk/search?search=E07000114,Thanet District Council,17/10/2017,440621,1251.25,,Hays Specialist Recruitment Ltd,HAY020,Community Services,Revenue,Agency Staff,Human Resources,
http://statistics.data.gov.uk/search?search=E07000114,Thanet District Council,17/10/2017,441032,1260.00,,Hays Specialist Recruitment Ltd,HAY020,Community Services,Revenue,Agency Staff,Human Resources,
http://statistics.data.gov.uk/search?search=E07000114,Thanet District Council,17/10/2017,441339,892.50,,Hays Specialist Recruitment Ltd,HAY020,Community Services,Revenue,Agency Staff,Human Resources,
http://statistics.data.gov.uk/search?search=E07000114,Thanet District Council,17/10/2017,440871,479.04,,Hr Go (Kent) Ltd,HRG001,Community Services,Revenue,Agency Staff,Human Resources,
http://statistics.data.gov.uk/search?search=E07000114,Thanet District Council,17/10/2017,441064,10261.20,,Hr Go (Kent) Ltd,HRG001,Operational Services,Revenue,Agency Staff,Human Resources,
http://statistics.data.gov.uk/search?search=E07000114,Thanet District Council,17/10/2017,441073,332.27,,Hr Go (Kent) Ltd,HRG001,Operational Services,Revenue,Agency Staff,Human Resources,
http://statistics.data.gov.uk/search?search=E07000114,Thanet District Council,17/10/2017,441285,593.94,,Hr Go (Kent) Ltd,HRG001,Operational Services,Revenue,Agency Staff,Human Resources,
http://statistics.data.gov.uk/search?search=E07000114,Thanet District Council,17/10/2017,441286,488.68,,Hr Go (Kent) Ltd,HRG001,Community Services,Revenue,Agency Staff,Human Resources,
http://statistics.data.gov.uk/search?search=E07000114,Thanet District Council,17/10/2017,441758,8313.24,,Hubbard & Houghton Construction Ltd,HUB003,Corporate Resources and S151,Balance Sheet,Capital Exp-Non Council Assets,Grants,
http://statistics.data.gov.uk/search?search=E07000114,Thanet District Council,17/10/2017,441114,4350.00,,Inovem Limited,INO001,Community Services,Revenue,Communications & Computing,ICT,
http://statistics.data.gov.uk/search?search=E07000114,Thanet District Council,17/10/2017,441750,643.80,,John Gale,GAL001,Corporate Resources and S151,Balance Sheet,Capital Exp-Non Council Assets,Grants,
http://statistics.data.gov.uk/search?search=E07000114,Thanet District Council,17/10/2017,441751,651.50,,John Gale,GAL001,Corporate Resources and S151,Balance Sheet,Capital Exp-Non Council Assets,Grants,
http://statistics.data.gov.uk/search?search=E07000114,Thanet District Council,17/10/2017,441208,230.00,,John Reeve (Plant Hire) Ltd,REE013,Operational Services,Revenue,Cont Hire & Operating Lease,Vehicle Management,
http://statistics.data.gov.uk/search?search=E07000114,Thanet District Council,17/10/2017,441761,9254.97,,Kierchris Homes Limited,KIE003,Corporate Resources and S151,Balance Sheet,Capital Exp-Non Council Assets,Grants,
http://statistics.data.gov.uk/search?search=E07000114,Thanet District Council,17/10/2017,441337,10013.90,,Kingdom Security Limited,KIN039,Operational Services,Revenue,Services,Street And Traffic Management,
http://statistics.data.gov.uk/search?search=E07000114,Thanet District Council,17/10/2017,441172,465.00,,Liberty Printers(Ar& Rf Reddin) Ltd,LIB002,Operational Services,Revenue,"Print, Stat And Gen Off Exps",Street And Traffic Management,
http://statistics.data.gov.uk/search?search=E07000114,Thanet District Council,17/10/2017,441757,14148.63,,Lifestyle (Kent) Ltd,LIF008,Corporate Resources and S151,Balance Sheet,Capital Exp-Non Council Assets,Grants,
http://statistics.data.gov.uk/search?search=E07000114,Thanet District Council,17/10/2017,441188,640.76,,Ling Metals Limited,LIN004,Operational Services,Revenue,Cleaning & Domestic Supplies,Environmental Services,
http://statistics.data.gov.uk/search?search=E07000114,Thanet District Council,17/10/2017,441203,800.00,,Ling Metals Limited,LIN004,Operational Services,Revenue,Cleaning & Domestic Supplies,Environmental Services,
http://statistics.data.gov.uk/search?search=E07000114,Thanet District Council,17/10/2017,440867,1050.00,,Lloyd Bore Ltd,LLO003,Operational Services,Revenue,Services,Consultancy,
http://statistics.data.gov.uk/search?search=E07000114,Thanet District Council,17/10/2017,441327,740.00,,Mallard Consultancy Ltd,MAL012,Community Services,Revenue,Services,Human Resources,
http://statistics.data.gov.uk/search?search=E07000114,Thanet District Council,17/10/2017,441327,250.00,,Mallard Consultancy Ltd,MAL012,Operational Services,Revenue,Expenses,Human Resources,
http://statistics.data.gov.uk/search?search=E07000114,Thanet District Council,17/10/2017,441536,245.80,,Mears Ltd,MEA003,Corporate Governance,Revenue,"Repairs,  Alter & Mtce - Build",Construction-Repair And Maint,
http://statistics.data.gov.uk/search?search=E07000114,Thanet District Council,17/10/2017,441338,5008.20,,Med Clean South Ltd,MED015,Operational Services,Revenue,Cleaning & Domestic Supplies,Cleaning And Janitorial,
http://statistics.data.gov.uk/search?search=E07000114,Thanet District Council,17/10/2017,441768,25.50,,Med Clean South Ltd,MED015,Operational Services,Revenue,Rechargeable Works,Cleaning And Janitorial,
http://statistics.data.gov.uk/search?search=E07000114,Thanet District Council,17/10/2017,441333,1350.00,,Michael Page Int Recruitment Ltd,PAG008,East Kent Shared Services,Revenue,Agency Staff,Human Resources,
http://statistics.data.gov.uk/search?search=E07000114,Thanet District Council,17/10/2017,441365,2100.00,,Michael Page Int Recruitment Ltd,PAG008,Corporate Resources and S151,Revenue,Services,Human Resources,
http://statistics.data.gov.uk/search?search=E07000114,Thanet District Council,17/10/2017,441162,524.29,,Morgan Jones Ltd,MOR001,East Kent Shared Services,Revenue,Agency Staff,Human Resources,
http://statistics.data.gov.uk/search?search=E07000114,Thanet District Council,17/10/2017,441164,311.96,,Morgan Jones Ltd,MOR001,East Kent Shared Services,Revenue,Agency Staff,Human Resources,
http://statistics.data.gov.uk/search?search=E07000114,Thanet District Council,17/10/2017,441753,5664.96,,Northwood Builders,NOR002,Corporate Resources and S151,Balance Sheet,Capital Exp-Non Council Assets,Grants,
http://statistics.data.gov.uk/search?search=E07000114,Thanet District Council,17/10/2017,440853,1681.71,,Ohuk Limited,OHU001,Operational Services,Revenue,Agency Staff,Human Resources,
http://statistics.data.gov.uk/search?search=E07000114,Thanet District Council,17/10/2017,441117,2266.46,,Ohuk Limited,OHU001,Operational Services,Revenue,Agency Staff,Human Resources,
http://statistics.data.gov.uk/search?search=E07000114,Thanet District Council,17/10/2017,441150,2200.34,,Ohuk Limited,OHU001,Operational Services,Revenue,Agency Staff,Human Resources,
http://statistics.data.gov.uk/search?search=E07000114,Thanet District Council,17/10/2017,441167,895.00,,Orbital Net Ltd,ORB008,Operational Services,Revenue,Communications & Computing,ICT,
http://statistics.data.gov.uk/search?search=E07000114,Thanet District Council,17/10/2017,441134,6501.38,,Ovenden Allworks Limited,OVE008,Corporate Resources and S151,Balance Sheet,Infrastructure,Construction-Repair And Maint,
http://statistics.data.gov.uk/search?search=E07000114,Thanet District Council,17/10/2017,441364,1117.00,,Peer 1 (Uk) Limited,PEE003,East Kent Shared Services,Revenue,Communications & Computing,ICT,
http://statistics.data.gov.uk/search?search=E07000114,Thanet District Council,17/10/2017,441194,1425.00,,Platform Service And Repair Ltd,PLA031,Operational Services,Revenue,"Equip, Furniture And Materials",Environmental Services,
http://statistics.data.gov.uk/search?search=E07000114,Thanet District Council,17/10/2017,441755,5800.00,,Premiere Projects Limited,PRE022,Corporate Resources and S151,Balance Sheet,Capital Exp-Non Council Assets,Grants,
http://statistics.data.gov.uk/search?search=E07000114,Thanet District Council,17/10/2017,441113,600.00,,R Cannon,CAN007,Corporate Resources and S151,Balance Sheet,Rechargeable Works,Maritime Services,
http://statistics.data.gov.uk/search?search=E07000114,Thanet District Council,17/10/2017,441746,400.00,,Regency Properties,REG004,Community Services,Revenue,Grants & Subscriptions,Rent Deposits,
http://statistics.data.gov.uk/search?search=E07000114,Thanet District Council,17/10/2017,441049,236.00,,Rexel Uk Limited,REX003,Operational Services,Revenue,"Repairs,  Alter & Mtce - Build",Building Construction Material,
http://statistics.data.gov.uk/search?search=E07000114,Thanet District Council,17/10/2017,441096,1052.12,,Royal Mail,ROY004,Corporate Governance,Revenue,Communications & Computing,Mail Services,
http://statistics.data.gov.uk/search?search=E07000114,Thanet District Council,17/10/2017,441280,64553.78,,Royal National Lifeboat Institution,RNL002,Operational Services,Revenue,Services,Arts And Leisure Services,
http://statistics.data.gov.uk/search?search=E07000114,Thanet District Council,17/10/2017,441487,244.60,,Securitas Security Services (Uk) Ltd,SEC019,Corporate Governance,Revenue,Services,Facilities And Management Serv,
http://statistics.data.gov.uk/search?search=E07000114,Thanet District Council,17/10/2017,441563,639.00,,Sellick Partnership Ltd,SEL011,Corporate Governance,Revenue,Services,Human Resources,
http://statistics.data.gov.uk/search?search=E07000114,Thanet District Council,17/10/2017,441375,2400.00,,Sharpe Pritchard Llp,SHA030,East Kent Shared Services,Revenue,Services,Legal Services,
http://statistics.data.gov.uk/search?search=E07000114,Thanet District Council,17/10/2017,441369,5118.75,,Shoreline Surveys Limited,SHO001,Operational Services,Revenue,"Repairs,  Alter & Mtce - Build",Maritime Services,
http://statistics.data.gov.uk/search?search=E07000114,Thanet District Council,17/10/2017,441754,6515.00,,South East Building Company Limited,SEB001,Corporate Resources and S151,Balance Sheet,Capital Exp-Non Council Assets,Grants,
http://statistics.data.gov.uk/search?search=E07000114,Thanet District Council,17/10/2017,441371,570.00,,St Lawrence College Enterprises Ltd,STL008,Corporate Governance,Revenue,Rents,Arts And Leisure Services,
http://statistics.data.gov.uk/search?search=E07000114,Thanet District Council,17/10/2017,441372,684.00,,St Lawrence College Enterprises Ltd,STL008,Corporate Governance,Revenue,Rents,Arts And Leisure Services,
http://statistics.data.gov.uk/search?search=E07000114,Thanet District Council,17/10/2017,441034,1013.00,,Studio Sam Causer Ltd,STU015,Corporate Resources and S151,Balance Sheet,Community Assets,Construction-Repair And Maint,
http://statistics.data.gov.uk/search?search=E07000114,Thanet District Council,17/10/2017,441322,1375.00,,The Yacht Harbour Association Ltd,YAC001,Operational Services,Revenue,Miscellaneous Expenses,Maritime Services,
http://statistics.data.gov.uk/search?search=E07000114,Thanet District Council,17/10/2017,440659,161.50,,Tourism South East,TOU003,Community Services,Revenue,Expenses,Human Resources,
http://statistics.data.gov.uk/search?search=E07000114,Thanet District Council,17/10/2017,441767,0.50,,Tourism South East,TOU003,Community Services,Revenue,Expenses,Human Resources,
http://statistics.data.gov.uk/search?search=E07000114,Thanet District Council,17/10/2017,441118,1266.67,,Town Legal Llp,TOW015,Corporate Resources and S151,Balance Sheet,Other Land And Buildings-Hra,Legal Services,
http://statistics.data.gov.uk/search?search=E07000114,Thanet District Council,17/10/2017,441692,1090.00,,Tutorcare Limited,TUT003,Operational Services,Revenue,Training,Human Resources,
http://statistics.data.gov.uk/search?search=E07000114,Thanet District Council,17/10/2017,441743,3734.00,,Veale Wasbrough Vizards Llp,VEA001,Operational Services,Revenue,Services,Legal Services,
http://statistics.data.gov.uk/search?search=E07000114,Thanet District Council,17/10/2017,441490,2556.66,,Veolia Es (Uk) Ltd,VEO001,Operational Services,Revenue,Cleaning & Domestic Supplies,Environmental Services,
http://statistics.data.gov.uk/search?search=E07000114,Thanet District Council,17/10/2017,441222,289.80,,Viridor Waste Management Ltd,VIR003,Corporate Governance,Revenue,Private Contractors,Environmental Services,
http://statistics.data.gov.uk/search?search=E07000114,Thanet District Council,17/10/2017,441227,208.62,,Viridor Waste Management Ltd,VIR003,Corporate Governance,Revenue,Cleaning & Domestic Supplies,Environmental Services,
http://statistics.data.gov.uk/search?search=E07000114,Thanet District Council,17/10/2017,441281,338.49,,Viridor Waste Management Ltd,VIR003,Corporate Governance,Revenue,Cleaning & Domestic Supplies,Environmental Services,
http://statistics.data.gov.uk/search?search=E07000114,Thanet District Council,17/10/2017,441573,465.00,,Zoho Corporation Private Ltd,ZOH001,East Kent Shared Services,Revenue,Communications & Computing,ICT,
http://statistics.data.gov.uk/search?search=E07000114,Thanet District Council,19/10/2017,440817,421.40,,All Access Ltd,ALL031,Corporate Resources and S151,Balance Sheet,Rechargeable Works,Building Construction Material,
http://statistics.data.gov.uk/search?search=E07000114,Thanet District Council,19/10/2017,441933,1584.23,,Family Mosaic Housing,FAM001,Corporate Resources and S151,Balance Sheet,Capital Exp-Non Council Assets,Housing Management,
http://statistics.data.gov.uk/search?search=E07000114,Thanet District Council,19/10/2017,441934,1114.60,,Family Mosaic Housing,FAM001,Corporate Resources and S151,Balance Sheet,Capital Exp-Non Council Assets,Housing Management,
http://statistics.data.gov.uk/search?search=E07000114,Thanet District Council,19/10/2017,441935,997.58,,Family Mosaic Housing,FAM001,Corporate Resources and S151,Balance Sheet,Capital Exp-Non Council Assets,Housing Management,
http://statistics.data.gov.uk/search?search=E07000114,Thanet District Council,19/10/2017,441938,267237.00,,Kent & Medway Towns Fire Authority,KMT001,Corporate Resources and S151,Balance Sheet,Collection Fund - Preceptors,Various Cats-Public Sector,
http://statistics.data.gov.uk/search?search=E07000114,Thanet District Council,19/10/2017,441936,4273992.00,,Kent County Council,KCC022,Corporate Resources and S151,Balance Sheet,Collection Fund - Preceptors,Various Cats-Public Sector,
http://statistics.data.gov.uk/search?search=E07000114,Thanet District Council,19/10/2017,441937,566761.00,,Kent Police & Crime Commissioner,KPA003,Corporate Resources and S151,Balance Sheet,Collection Fund - Preceptors,Various Cats-Public Sector,
http://statistics.data.gov.uk/search?search=E07000114,Thanet District Council,19/10/2017,441027,437.50,,Main Man Supplies Ltd,MAI001,Operational Services,Revenue,"Clothes, Uniforms & Laundry",Clothing,
http://statistics.data.gov.uk/search?search=E07000114,Thanet District Council,19/10/2017,441155,414.00,,One Two Three Send Limited,ONE007,Operational Services,Revenue,"Equip, Furniture And Materials",Financial Services,
http://statistics.data.gov.uk/search?search=E07000114,Thanet District Council,19/10/2017,N/A,487.95,,REDACTED PERSONAL DATA,N/A,East Kent Shared Services,Revenue,Car Allowances,Non Trade Payee,
http://statistics.data.gov.uk/search?search=E07000114,Thanet District Council,19/10/2017,N/A,32.99,,REDACTED PERSONAL DATA,N/A,East Kent Shared Services,Revenue,Car Allowances,Non Trade Payee,
http://statistics.data.gov.uk/search?search=E07000114,Thanet District Council,19/10/2017,N/A,192.50,,REDACTED PERSONAL DATA,N/A,East Kent Shared Services,Revenue,Expenses,Non Trade Payee,
http://statistics.data.gov.uk/search?search=E07000114,Thanet District Council,19/10/2017,N/A,27.70,,REDACTED PERSONAL DATA,N/A,East Kent Shared Services,Revenue,Public Transport,Non Trade Payee,
http://statistics.data.gov.uk/search?search=E07000114,Thanet District Council,19/10/2017,N/A,415.25,,REDACTED PERSONAL DATA,N/A,Community Services,Revenue,Public Transport,Non Trade Payee,
http://statistics.data.gov.uk/search?search=E07000114,Thanet District Council,19/10/2017,N/A,100.30,,REDACTED PERSONAL DATA,N/A,Community Services,Revenue,Car Allowances,Non Trade Payee,
http://statistics.data.gov.uk/search?search=E07000114,Thanet District Council,19/10/2017,N/A,5.00,,REDACTED PERSONAL DATA,N/A,Community Services,Revenue,Public Transport,Non Trade Payee,
http://statistics.data.gov.uk/search?search=E07000114,Thanet District Council,19/10/2017,N/A,30.88,,REDACTED PERSONAL DATA,N/A,Community Services,Revenue,Expenses,Non Trade Payee,
http://statistics.data.gov.uk/search?search=E07000114,Thanet District Council,19/10/2017,N/A,13.78,,REDACTED PERSONAL DATA,N/A,Community Services,Revenue,Expenses,Non Trade Payee,
http://statistics.data.gov.uk/search?search=E07000114,Thanet District Council,19/10/2017,N/A,272.23,,REDACTED PERSONAL DATA,N/A,Community Services,Revenue,Car Allowances,Non Trade Payee,
http://statistics.data.gov.uk/search?search=E07000114,Thanet District Council,19/10/2017,N/A,308.85,,REDACTED PERSONAL DATA,N/A,Community Services,Revenue,Car Allowances,Non Trade Payee,
http://statistics.data.gov.uk/search?search=E07000114,Thanet District Council,19/10/2017,N/A,346.26,,REDACTED PERSONAL DATA,N/A,Operational Services,Revenue,Car Allowances,Non Trade Payee,
http://statistics.data.gov.uk/search?search=E07000114,Thanet District Council,19/10/2017,N/A,20.00,,REDACTED PERSONAL DATA,N/A,Operational Services,Revenue,Public Transport,Non Trade Payee,
http://statistics.data.gov.uk/search?search=E07000114,Thanet District Council,19/10/2017,N/A,9.40,,REDACTED PERSONAL DATA,N/A,Operational Services,Revenue,Expenses,Non Trade Payee,
http://statistics.data.gov.uk/search?search=E07000114,Thanet District Council,19/10/2017,N/A,437.00,,REDACTED PERSONAL DATA,N/A,Operational Services,Revenue,Car Allowances,Non Trade Payee,
http://statistics.data.gov.uk/search?search=E07000114,Thanet District Council,19/10/2017,441548,-517.47,,Scottish Water Business Stream Ltd,SCO019,Corporate Governance,Revenue,Water Services,Utilities,
http://statistics.data.gov.uk/search?search=E07000114,Thanet District Council,19/10/2017,441550,923.10,,Scottish Water Business Stream Ltd,SCO019,Operational Services,Revenue,Water Services,Utilities,
http://statistics.data.gov.uk/search?search=E07000114,Thanet District Council,19/10/2017,441650,289.73,,Scottish Water Business Stream Ltd,SCO019,Operational Services,Revenue,Water Services,Utilities,
http://statistics.data.gov.uk/search?search=E07000114,Thanet District Council,19/10/2017,441651,468.92,,Scottish Water Business Stream Ltd,SCO019,Operational Services,Revenue,Water Services,Utilities,
http://statistics.data.gov.uk/search?search=E07000114,Thanet District Council,19/10/2017,441720,3046.84,,Scottish Water Business Stream Ltd,SCO019,Operational Services,Revenue,Water Services,Utilities,
http://statistics.data.gov.uk/search?search=E07000114,Thanet District Council,19/10/2017,441723,2152.76,,Scottish Water Business Stream Ltd,SCO019,Corporate Governance,Revenue,Water Services,Utilities,
http://statistics.data.gov.uk/search?search=E07000114,Thanet District Council,19/10/2017,441307,213.31,,Southern Electric,SEL007,Operational Services,Revenue,Energy Costs,Utilities,
http://statistics.data.gov.uk/search?search=E07000114,Thanet District Council,19/10/2017,441312,304.15,,Southern Electric,SEL007,Operational Services,Revenue,Energy Costs,Utilities,
http://statistics.data.gov.uk/search?search=E07000114,Thanet District Council,19/10/2017,441313,249.22,,Southern Electric,SEL007,Operational Services,Revenue,Energy Costs,Utilities,
http://statistics.data.gov.uk/search?search=E07000114,Thanet District Council,19/10/2017,441316,5.09,,Southern Electric,SEL007,Community Services,Revenue,Energy Costs,Utilities,
http://statistics.data.gov.uk/search?search=E07000114,Thanet District Council,19/10/2017,441316,544.05,,Southern Electric,SEL007,Operational Services,Revenue,Energy Costs,Utilities,
http://statistics.data.gov.uk/search?search=E07000114,Thanet District Council,19/10/2017,441646,341.02,,Southern Electric,SEL007,Operational Services,Revenue,Energy Costs,Utilities,
http://statistics.data.gov.uk/search?search=E07000114,Thanet District Council,19/10/2017,441663,266.17,,Total Supplies Ltd,TOT009,Corporate Resources and S151,Revenue,Cleaning & Domestic Supplies,Cleaning And Janitorial,
http://statistics.data.gov.uk/search?search=E07000114,Thanet District Council,24/10/2017,442180,2545.00,,Access & Automation Limited,ACC012,Corporate Resources and S151,Balance Sheet,Capital Exp-Non Council Assets,Facilities And Management Serv,
http://statistics.data.gov.uk/search?search=E07000114,Thanet District Council,24/10/2017,442184,2595.00,,Access & Automation Limited,ACC012,Corporate Resources and S151,Balance Sheet,Capital Exp-Non Council Assets,Facilities And Management Serv,
http://statistics.data.gov.uk/search?search=E07000114,Thanet District Council,24/10/2017,441639,325.00,,All About Asbestos Limited,ALL044,Operational Services,Revenue,"Repairs,  Alter & Mtce - Build",Environmental Services,
http://statistics.data.gov.uk/search?search=E07000114,Thanet District Council,24/10/2017,441189,1870.49,,Ats Euromaster Ltd,ATS002,Operational Services,Revenue,Direct Transport Costs,Vehicle Management,
http://statistics.data.gov.uk/search?search=E07000114,Thanet District Council,24/10/2017,441666,325.00,,Benchmarq Limited,BEN013,Operational Services,Revenue,Communications & Computing,ICT,
http://statistics.data.gov.uk/search?search=E07000114,Thanet District Council,24/10/2017,442177,13689.38,,Bramling Construction Ltd,BRA020,Corporate Resources and S151,Balance Sheet,Capital Exp-Non Council Assets,Grants,
http://statistics.data.gov.uk/search?search=E07000114,Thanet District Council,24/10/2017,441699,5532.80,,British Polythene Ltd,BPI002,Operational Services,Revenue,"Equip, Furniture And Materials",Environmental Services,
http://statistics.data.gov.uk/search?search=E07000114,Thanet District Council,24/10/2017,442165,1980.00,,Broadstairs Gas Services Ltd,BRO083,Corporate Resources and S151,Balance Sheet,Capital Exp-Non Council Assets,Grants,
http://statistics.data.gov.uk/search?search=E07000114,Thanet District Council,24/10/2017,441324,1266.00,,Burgess Marine Ltd,BUR017,Operational Services,Revenue,"Equip, Furniture And Materials",Maritime Services,
http://statistics.data.gov.uk/search?search=E07000114,Thanet District Council,24/10/2017,441474,829.00,,Burgess Marine Ltd,BUR017,Operational Services,Revenue,"Repairs,  Alter & Mtce - Build",Maritime Services,
http://statistics.data.gov.uk/search?search=E07000114,Thanet District Council,24/10/2017,442038,19878.33,,Canterbury City Council,CAN004,East Kent Shared Services,Revenue,Grants & Subscriptions,Various Cats-Public Sector,
http://statistics.data.gov.uk/search?search=E07000114,Thanet District Council,24/10/2017,442080,1335.00,,Canterbury College,CAN005,Corporate Resources and S151,Revenue,Training,Human Resources,
http://statistics.data.gov.uk/search?search=E07000114,Thanet District Council,24/10/2017,441695,950.00,,Centrix Limited T/A Adept,CEN020,East Kent Shared Services,Revenue,Services,ICT,
http://statistics.data.gov.uk/search?search=E07000114,Thanet District Council,24/10/2017,441924,2301.65,,Certas Energy Uk Ltd,CER005,Operational Services,Revenue,"Equip, Furniture And Materials",Vehicle Management,
http://statistics.data.gov.uk/search?search=E07000114,Thanet District Council,24/10/2017,442024,1870.20,,Certas Energy Uk Ltd,CER005,Operational Services,Revenue,"Equip, Furniture And Materials",Vehicle Management,
http://statistics.data.gov.uk/search?search=E07000114,Thanet District Council,24/10/2017,442149,3038.00,,Clague Llp,CLA038,Operational Services,Revenue,Services,Construction-Repair And Maint,
http://statistics.data.gov.uk/search?search=E07000114,Thanet District Council,24/10/2017,441902,375.00,,Countrystyle Recycling Limited,COU019,Operational Services,Revenue,Cont Hire & Operating Lease,Environmental Services,
http://statistics.data.gov.uk/search?search=E07000114,Thanet District Council,24/10/2017,442160,49028.03,,D C L G,DCL002,Corporate Resources and S151,Balance Sheet,Capital Receipts Reserve,Government Agencies,
http://statistics.data.gov.uk/search?search=E07000114,Thanet District Council,24/10/2017,441328,2849.67,,E Saunders Margate Ltd,SAU001,Corporate Resources and S151,Balance Sheet,Other Land And Buildings-Hra,Construction-Repair And Maint,
http://statistics.data.gov.uk/search?search=E07000114,Thanet District Council,24/10/2017,441042,220.00,,East Kent Components Ltd,EKC006,Operational Services,Revenue,Direct Transport Costs,Vehicle Management,
http://statistics.data.gov.uk/search?search=E07000114,Thanet District Council,24/10/2017,441043,395.00,,East Kent Components Ltd,EKC006,Operational Services,Revenue,Direct Transport Costs,Vehicle Management,
http://statistics.data.gov.uk/search?search=E07000114,Thanet District Council,24/10/2017,441068,220.00,,East Kent Components Ltd,EKC006,Operational Services,Revenue,Direct Transport Costs,Vehicle Management,
http://statistics.data.gov.uk/search?search=E07000114,Thanet District Council,24/10/2017,441069,220.00,,East Kent Components Ltd,EKC006,Operational Services,Revenue,Direct Transport Costs,Vehicle Management,
http://statistics.data.gov.uk/search?search=E07000114,Thanet District Council,24/10/2017,441629,545.00,,Edmundson Electrical Limited,EDM001,Operational Services,Revenue,"Repairs,  Alter & Mtce - Build",Building Construction Material,
http://statistics.data.gov.uk/search?search=E07000114,Thanet District Council,24/10/2017,441630,11125.00,,Edmundson Electrical Limited,EDM001,Operational Services,Revenue,"Repairs,  Alter & Mtce - Build",Building Construction Material,
http://statistics.data.gov.uk/search?search=E07000114,Thanet District Council,24/10/2017,441592,216.20,,Esri (Uk) Ltd,ESR001,East Kent Shared Services,Revenue,Agency Staff,ICT,
http://statistics.data.gov.uk/search?search=E07000114,Thanet District Council,24/10/2017,441108,1624.00,,Estuary Services Ltd,EST002,Operational Services,Revenue,Cont Hire & Operating Lease,Maritime Services,
http://statistics.data.gov.uk/search?search=E07000114,Thanet District Council,24/10/2017,442181,8606.90,,Evermech Services Ltd,EVE011,Corporate Resources and S151,Balance Sheet,Capital Exp-Non Council Assets,Grants,
http://statistics.data.gov.uk/search?search=E07000114,Thanet District Council,24/10/2017,442183,5156.74,,Evermech Services Ltd,EVE011,Corporate Resources and S151,Balance Sheet,Capital Exp-Non Council Assets,Grants,
http://statistics.data.gov.uk/search?search=E07000114,Thanet District Council,24/10/2017,441583,10257.01,,F M Conway Ltd,CON043,Operational Services,Revenue,"Repairs,  Alter & Mtce - Build",Construction-Repair And Maint,
http://statistics.data.gov.uk/search?search=E07000114,Thanet District Council,24/10/2017,442166,896.39,,Family Mosaic Housing,FAM001,Corporate Resources and S151,Balance Sheet,Capital Exp-Non Council Assets,Housing Management,
http://statistics.data.gov.uk/search?search=E07000114,Thanet District Council,24/10/2017,442168,1178.87,,Family Mosaic Housing,FAM001,Corporate Resources and S151,Balance Sheet,Capital Exp-Non Council Assets,Housing Management,
http://statistics.data.gov.uk/search?search=E07000114,Thanet District Council,24/10/2017,442170,879.65,,Family Mosaic Housing,FAM001,Corporate Resources and S151,Balance Sheet,Capital Exp-Non Council Assets,Housing Management,
http://statistics.data.gov.uk/search?search=E07000114,Thanet District Council,24/10/2017,442172,1344.12,,Family Mosaic Housing,FAM001,Corporate Resources and S151,Balance Sheet,Capital Exp-Non Council Assets,Housing Management,
http://statistics.data.gov.uk/search?search=E07000114,Thanet District Council,24/10/2017,442174,1184.83,,Family Mosaic Housing,FAM001,Corporate Resources and S151,Balance Sheet,Capital Exp-Non Council Assets,Housing Management,
http://statistics.data.gov.uk/search?search=E07000114,Thanet District Council,24/10/2017,442176,1646.73,,Family Mosaic Housing,FAM001,Corporate Resources and S151,Balance Sheet,Capital Exp-Non Council Assets,Housing Management,
http://statistics.data.gov.uk/search?search=E07000114,Thanet District Council,24/10/2017,442179,506.44,,Family Mosaic Housing,FAM001,Corporate Resources and S151,Balance Sheet,Capital Exp-Non Council Assets,Housing Management,
http://statistics.data.gov.uk/search?search=E07000114,Thanet District Council,24/10/2017,442182,2208.59,,Family Mosaic Housing,FAM001,Corporate Resources and S151,Balance Sheet,Capital Exp-Non Council Assets,Housing Management,
http://statistics.data.gov.uk/search?search=E07000114,Thanet District Council,24/10/2017,441684,3595.00,,Freight Transport Association,FRE007,Operational Services,Revenue,Training,Human Resources,
http://statistics.data.gov.uk/search?search=E07000114,Thanet District Council,24/10/2017,442158,8000.00,,H M Courts & Tribunal Service,HMC007,Operational Services,Revenue,Services,Government Agencies,
http://statistics.data.gov.uk/search?search=E07000114,Thanet District Council,24/10/2017,442169,9823.90,,Hfd Construction,HFD001,Corporate Resources and S151,Balance Sheet,Capital Exp-Non Council Assets,Grants,
http://statistics.data.gov.uk/search?search=E07000114,Thanet District Council,24/10/2017,442173,3200.00,,Hfd Construction,HFD001,Corporate Resources and S151,Balance Sheet,Capital Exp-Non Council Assets,Grants,
http://statistics.data.gov.uk/search?search=E07000114,Thanet District Council,24/10/2017,442175,987.36,,Hfd Construction,HFD001,Corporate Resources and S151,Balance Sheet,Capital Exp-Non Council Assets,Grants,
http://statistics.data.gov.uk/search?search=E07000114,Thanet District Council,24/10/2017,442164,2364.40,,Howe Heating & Plumbing,HOW019,Corporate Resources and S151,Balance Sheet,Capital Exp-Non Council Assets,Grants,
http://statistics.data.gov.uk/search?search=E07000114,Thanet District Council,24/10/2017,442178,5024.40,,Howe Heating & Plumbing,HOW019,Corporate Resources and S151,Balance Sheet,Capital Exp-Non Council Assets,Grants,
http://statistics.data.gov.uk/search?search=E07000114,Thanet District Council,24/10/2017,441605,816.75,,Hr Go (Kent) Ltd,HRG001,Operational Services,Revenue,Agency Staff,Human Resources,
http://statistics.data.gov.uk/search?search=E07000114,Thanet District Council,24/10/2017,441607,377.40,,Hr Go (Kent) Ltd,HRG001,Operational Services,Revenue,Agency Staff,Human Resources,
http://statistics.data.gov.uk/search?search=E07000114,Thanet District Council,24/10/2017,441611,1491.84,,Hr Go (Kent) Ltd,HRG001,Operational Services,Revenue,Agency Staff,Human Resources,
http://statistics.data.gov.uk/search?search=E07000114,Thanet District Council,24/10/2017,441672,391.06,,Hr Go (Kent) Ltd,HRG001,Operational Services,Revenue,Agency Staff,Human Resources,
http://statistics.data.gov.uk/search?search=E07000114,Thanet District Council,24/10/2017,441673,7513.81,,Hr Go (Kent) Ltd,HRG001,Operational Services,Revenue,Agency Staff,Human Resources,
http://statistics.data.gov.uk/search?search=E07000114,Thanet District Council,24/10/2017,442167,7469.92,,Hubbard & Houghton Construction Ltd,HUB003,Corporate Resources and S151,Balance Sheet,Capital Exp-Non Council Assets,Grants,
http://statistics.data.gov.uk/search?search=E07000114,Thanet District Council,24/10/2017,441685,867.20,,Kpr Midlink Ltd,KPR004,Corporate Resources and S151,Revenue,Communications & Computing,ICT,
http://statistics.data.gov.uk/search?search=E07000114,Thanet District Council,24/10/2017,441693,600.00,,Ling Metals Limited,LIN004,Operational Services,Revenue,Cont Hire & Operating Lease,Environmental Services,
http://statistics.data.gov.uk/search?search=E07000114,Thanet District Council,24/10/2017,442075,604.95,,Loomis Uk Ltd,LOO002,Operational Services,Revenue,Services,Financial Services,
http://statistics.data.gov.uk/search?search=E07000114,Thanet District Council,24/10/2017,441919,360.00,,M E Oram,ORA004,Operational Services,Revenue,Training,Human Resources,
http://statistics.data.gov.uk/search?search=E07000114,Thanet District Council,24/10/2017,441920,2008.50,,Matrix Communications Ltd,MAT004,Corporate Resources and S151,Balance Sheet,Other Land And Buildings-Hra,ICT,
http://statistics.data.gov.uk/search?search=E07000114,Thanet District Council,24/10/2017,441527,4263.26,,Mears Ltd,MEA003,Corporate Resources and S151,Balance Sheet,Repairs And Mtce Holding A/C,Construction-Repair And Maint,
http://statistics.data.gov.uk/search?search=E07000114,Thanet District Council,24/10/2017,441528,9729.41,,Mears Ltd,MEA003,Corporate Resources and S151,Balance Sheet,Repairs And Mtce Holding A/C,Construction-Repair And Maint,
http://statistics.data.gov.uk/search?search=E07000114,Thanet District Council,24/10/2017,441529,51159.58,,Mears Ltd,MEA003,Corporate Resources and S151,Balance Sheet,Repairs And Mtce Holding A/C,Construction-Repair And Maint,
http://statistics.data.gov.uk/search?search=E07000114,Thanet District Council,24/10/2017,441530,641.51,,Mears Ltd,MEA003,Corporate Resources and S151,Balance Sheet,Repairs And Mtce Holding A/C,Construction-Repair And Maint,
http://statistics.data.gov.uk/search?search=E07000114,Thanet District Council,24/10/2017,441532,17183.60,,Mears Ltd,MEA003,Corporate Resources and S151,Balance Sheet,Repairs And Mtce Holding A/C,Construction-Repair And Maint,
http://statistics.data.gov.uk/search?search=E07000114,Thanet District Council,24/10/2017,441594,427.74,,Mears Ltd,MEA003,Corporate Governance,Revenue,"Repairs,  Alter & Mtce - Build",Construction-Repair And Maint,
http://statistics.data.gov.uk/search?search=E07000114,Thanet District Council,24/10/2017,441594,927.36,,Mears Ltd,MEA003,Operational Services,Revenue,"Repairs,  Alter & Mtce - Build",Construction-Repair And Maint,
http://statistics.data.gov.uk/search?search=E07000114,Thanet District Council,24/10/2017,441595,1817.45,,Mears Ltd,MEA003,Community Services,Revenue,"Repairs,  Alter & Mtce - Build",Construction-Repair And Maint,
http://statistics.data.gov.uk/search?search=E07000114,Thanet District Council,24/10/2017,441596,2784.31,,Mears Ltd,MEA003,Community Services,Revenue,"Repairs,  Alter & Mtce - Build",Construction-Repair And Maint,
http://statistics.data.gov.uk/search?search=E07000114,Thanet District Council,24/10/2017,441597,98240.85,,Mears Ltd,MEA003,Community Services,Revenue,"Repairs,  Alter & Mtce - Build",Construction-Repair And Maint,
http://statistics.data.gov.uk/search?search=E07000114,Thanet District Council,24/10/2017,441623,15.58,,Mears Ltd,MEA003,Community Services,Revenue,"Repairs,  Alter & Mtce - Build",Construction-Repair And Maint,
http://statistics.data.gov.uk/search?search=E07000114,Thanet District Council,24/10/2017,441623,425.85,,Mears Ltd,MEA003,Corporate Governance,Revenue,"Repairs,  Alter & Mtce - Build",Construction-Repair And Maint,
http://statistics.data.gov.uk/search?search=E07000114,Thanet District Council,24/10/2017,441624,212.19,,Mears Ltd,MEA003,Community Services,Revenue,"Repairs,  Alter & Mtce - Build",Construction-Repair And Maint,
http://statistics.data.gov.uk/search?search=E07000114,Thanet District Council,24/10/2017,441624,565.84,,Mears Ltd,MEA003,Corporate Governance,Revenue,"Repairs,  Alter & Mtce - Build",Construction-Repair And Maint,
http://statistics.data.gov.uk/search?search=E07000114,Thanet District Council,24/10/2017,441624,353.65,,Mears Ltd,MEA003,Operational Services,Revenue,"Repairs,  Alter & Mtce - Build",Construction-Repair And Maint,
http://statistics.data.gov.uk/search?search=E07000114,Thanet District Council,24/10/2017,441726,5956.00,,Mears Ltd,MEA003,Corporate Resources and S151,Balance Sheet,Repairs And Mtce Holding A/C,Construction-Repair And Maint,
http://statistics.data.gov.uk/search?search=E07000114,Thanet District Council,24/10/2017,441727,13639.92,,Mears Ltd,MEA003,Corporate Resources and S151,Balance Sheet,Repairs And Mtce Holding A/C,Construction-Repair And Maint,
http://statistics.data.gov.uk/search?search=E07000114,Thanet District Council,24/10/2017,441728,2486.26,,Mears Ltd,MEA003,Corporate Resources and S151,Balance Sheet,Repairs And Mtce Holding A/C,Construction-Repair And Maint,
http://statistics.data.gov.uk/search?search=E07000114,Thanet District Council,24/10/2017,441729,2219.53,,Mears Ltd,MEA003,Corporate Resources and S151,Balance Sheet,Repairs And Mtce Holding A/C,Construction-Repair And Maint,
http://statistics.data.gov.uk/search?search=E07000114,Thanet District Council,24/10/2017,441730,432.14,,Mears Ltd,MEA003,Corporate Resources and S151,Balance Sheet,Repairs And Mtce Holding A/C,Construction-Repair And Maint,
http://statistics.data.gov.uk/search?search=E07000114,Thanet District Council,24/10/2017,441732,305.41,,Mears Ltd,MEA003,Corporate Resources and S151,Balance Sheet,Repairs And Mtce Holding A/C,Construction-Repair And Maint,
http://statistics.data.gov.uk/search?search=E07000114,Thanet District Council,24/10/2017,442005,618.00,,Med Clean South Ltd,MED015,Operational Services,Revenue,"Repairs,  Alter & Mtce - Build",Cleaning And Janitorial,
http://statistics.data.gov.uk/search?search=E07000114,Thanet District Council,24/10/2017,442020,311.20,,Med Clean South Ltd,MED015,Operational Services,Revenue,"Repairs,  Alter & Mtce - Build",Cleaning And Janitorial,
http://statistics.data.gov.uk/search?search=E07000114,Thanet District Council,24/10/2017,441366,2500.00,,Medway Insulations Limited,MED006,Corporate Resources and S151,Balance Sheet,Repairs And Mtce Holding A/C,Environmental Services,
http://statistics.data.gov.uk/search?search=E07000114,Thanet District Council,24/10/2017,441736,1500.00,,Michael Page Int Recruitment Ltd,PAG008,East Kent Shared Services,Revenue,Agency Staff,Human Resources,
http://statistics.data.gov.uk/search?search=E07000114,Thanet District Council,24/10/2017,441917,3000.00,,Michael Page Int Recruitment Ltd,PAG008,East Kent Shared Services,Revenue,Agency Staff,Human Resources,
http://statistics.data.gov.uk/search?search=E07000114,Thanet District Council,24/10/2017,441642,528.21,,Morgan Jones Ltd,MOR001,East Kent Shared Services,Revenue,Agency Staff,Human Resources,
http://statistics.data.gov.uk/search?search=E07000114,Thanet District Council,24/10/2017,441644,524.29,,Morgan Jones Ltd,MOR001,East Kent Shared Services,Revenue,Agency Staff,Human Resources,
http://statistics.data.gov.uk/search?search=E07000114,Thanet District Council,24/10/2017,441921,315.28,,Morgan Jones Ltd,MOR001,East Kent Shared Services,Revenue,Agency Staff,Human Resources,
http://statistics.data.gov.uk/search?search=E07000114,Thanet District Council,24/10/2017,441923,524.66,,Morgan Jones Ltd,MOR001,East Kent Shared Services,Revenue,Agency Staff,Human Resources,
http://statistics.data.gov.uk/search?search=E07000114,Thanet District Council,24/10/2017,441633,3345.51,,Ohuk Limited,OHU001,Operational Services,Revenue,Agency Staff,Human Resources,
http://statistics.data.gov.uk/search?search=E07000114,Thanet District Council,24/10/2017,441998,3036.26,,Ohuk Limited,OHU001,Operational Services,Revenue,Agency Staff,Human Resources,
http://statistics.data.gov.uk/search?search=E07000114,Thanet District Council,24/10/2017,442060,909.56,,Parkeon Limited,PAR063,Operational Services,Revenue,"Equip, Furniture And Materials",Street And Traffic Management,
http://statistics.data.gov.uk/search?search=E07000114,Thanet District Council,24/10/2017,441691,246.79,,Paul Nunn Limited,NUN002,Operational Services,Revenue,Direct Transport Costs,Vehicle Management,
http://statistics.data.gov.uk/search?search=E07000114,Thanet District Council,24/10/2017,441712,657.15,,Platform Service And Repair Ltd,PLA031,Operational Services,Revenue,"Repairs,  Alter & Mtce - Build",Environmental Services,
http://statistics.data.gov.uk/search?search=E07000114,Thanet District Council,24/10/2017,441918,385.00,,R Cannon,CAN007,Operational Services,Revenue,Services,Maritime Services,
http://statistics.data.gov.uk/search?search=E07000114,Thanet District Council,24/10/2017,442002,420.00,,R Cannon,CAN007,Operational Services,Revenue,Services,Maritime Services,
http://statistics.data.gov.uk/search?search=E07000114,Thanet District Council,24/10/2017,442003,805.00,,R Cannon,CAN007,Operational Services,Revenue,Services,Maritime Services,
http://statistics.data.gov.uk/search?search=E07000114,Thanet District Council,24/10/2017,441275,425.00,,R S Components Ltd,RSC001,Operational Services,Revenue,"Equip, Furniture And Materials",Maritime Services,
http://statistics.data.gov.uk/search?search=E07000114,Thanet District Council,24/10/2017,441568,772.50,,Rigby Taylor Ltd,RIG002,Operational Services,Revenue,"Equip, Furniture And Materials",Horticultural,
http://statistics.data.gov.uk/search?search=E07000114,Thanet District Council,24/10/2017,442159,41389.50,,River Stour (Kent) Int Drainage Brd,RIV001,Community Services,Revenue,Rates,Various Categories,
http://statistics.data.gov.uk/search?search=E07000114,Thanet District Council,24/10/2017,441060,3780.00,,Riverside Truck Rental Limited,RIV005,Operational Services,Revenue,Cont Hire & Operating Lease,Vehicle Management,
http://statistics.data.gov.uk/search?search=E07000114,Thanet District Council,24/10/2017,441686,1655.00,,Satisnet Limited,SAT002,East Kent Shared Services,Revenue,Communications & Computing,ICT,
http://statistics.data.gov.uk/search?search=E07000114,Thanet District Council,24/10/2017,442033,3098.48,,Securitas Security Services (Uk) Ltd,SEC019,Corporate Governance,Revenue,Services,Facilities And Management Serv,
http://statistics.data.gov.uk/search?search=E07000114,Thanet District Council,24/10/2017,441708,2841.31,,Shepway District Council,SHE001,Operational Services,Revenue,Services,Various Cats-Public Sector,
http://statistics.data.gov.uk/search?search=E07000114,Thanet District Council,24/10/2017,441334,2250.00,,Silent Running Productions Ltd,SIL009,Community Services,Revenue,Services,Grants,
http://statistics.data.gov.uk/search?search=E07000114,Thanet District Council,24/10/2017,441013,443.08,,Silgo Lubricants Ltd,SIL007,Operational Services,Revenue,Direct Transport Costs,Vehicle Management,
http://statistics.data.gov.uk/search?search=E07000114,Thanet District Council,24/10/2017,442171,7297.11,,South East Adaptations Limited,SOU026,Corporate Resources and S151,Balance Sheet,Capital Exp-Non Council Assets,Grants,
http://statistics.data.gov.uk/search?search=E07000114,Thanet District Council,24/10/2017,441599,279.84,,Spaldings  Ltd,SPA006,Operational Services,Revenue,"Equip, Furniture And Materials",Horticultural,
http://statistics.data.gov.uk/search?search=E07000114,Thanet District Council,24/10/2017,441665,-223.87,,Spaldings  Ltd,SPA006,Operational Services,Revenue,"Equip, Furniture And Materials",Horticultural,
http://statistics.data.gov.uk/search?search=E07000114,Thanet District Council,24/10/2017,441565,222.24,,Standfast Burglar Alarm Co (Ek) Ltd,STA003,Operational Services,Revenue,"Equip, Furniture And Materials",Facilities And Management Serv,
http://statistics.data.gov.uk/search?search=E07000114,Thanet District Council,24/10/2017,441205,4173.32,,Suregreen Limited,SUR017,Operational Services,Revenue,"Repairs,  Alter & Mtce - Build",Construction-Repair And Maint,
http://statistics.data.gov.uk/search?search=E07000114,Thanet District Council,24/10/2017,441378,3870.83,,The Glenwood Hotel,GLE007,Community Services,Revenue,Services,Housing Management,
http://statistics.data.gov.uk/search?search=E07000114,Thanet District Council,24/10/2017,441379,3150.01,,The Glenwood Hotel,GLE007,Community Services,Revenue,Services,Housing Management,
http://statistics.data.gov.uk/search?search=E07000114,Thanet District Council,24/10/2017,441380,3675.02,,The Glenwood Hotel,GLE007,Community Services,Revenue,Services,Housing Management,
http://statistics.data.gov.uk/search?search=E07000114,Thanet District Council,24/10/2017,441381,2575.00,,The Glenwood Hotel,GLE007,Community Services,Revenue,Services,Housing Management,
http://statistics.data.gov.uk/search?search=E07000114,Thanet District Council,24/10/2017,441697,3683.33,,The Glenwood Hotel,GLE007,Community Services,Revenue,Services,Housing Management,
http://statistics.data.gov.uk/search?search=E07000114,Thanet District Council,24/10/2017,441698,3354.18,,The Glenwood Hotel,GLE007,Community Services,Revenue,Services,Housing Management,
http://statistics.data.gov.uk/search?search=E07000114,Thanet District Council,24/10/2017,441700,2733.34,,The Glenwood Hotel,GLE007,Community Services,Revenue,Services,Housing Management,
http://statistics.data.gov.uk/search?search=E07000114,Thanet District Council,24/10/2017,441724,3233.34,,The Glenwood Hotel,GLE007,Community Services,Revenue,Services,Housing Management,
http://statistics.data.gov.uk/search?search=E07000114,Thanet District Council,24/10/2017,441694,1000.00,,Tikspac Uk Ltd,TIK001,Operational Services,Revenue,Miscellaneous Expenses,Facilities And Management Serv,
http://statistics.data.gov.uk/search?search=E07000114,Thanet District Council,24/10/2017,441590,11559.97,,Town & Country Cleaners Ltd,TOW002,Corporate Resources and S151,Balance Sheet,Repairs And Mtce Holding A/C,Cleaning And Janitorial,
http://statistics.data.gov.uk/search?search=E07000114,Thanet District Council,24/10/2017,441556,6800.00,,Vector Resourcing Ltd,VEC001,East Kent Shared Services,Revenue,Agency Staff,Human Resources,
http://statistics.data.gov.uk/search?search=E07000114,Thanet District Council,26/10/2017,PC10099,19.98,,123-Reg,N/A,Corporate Governance,Revenue,Communications & Computing,ICT,
http://statistics.data.gov.uk/search?search=E07000114,Thanet District Council,26/10/2017,PC10116,19.98,,123-Reg,N/A,Operational Services,Revenue,Grants & Subscriptions,ICT,
http://statistics.data.gov.uk/search?search=E07000114,Thanet District Council,26/10/2017,PC10133,10.00,,A1 Rent,N/A,Operational Services,Revenue,Direct Transport Costs,Vehicle Management,
http://statistics.data.gov.uk/search?search=E07000114,Thanet District Council,26/10/2017,PC10134,-10.00,,A1 Rent,N/A,Operational Services,Revenue,Direct Transport Costs,Vehicle Management,
http://statistics.data.gov.uk/search?search=E07000114,Thanet District Council,26/10/2017,PC10103,11.55,,Aldi,N/A,Operational Services,Revenue,Catering,Catering,
http://statistics.data.gov.uk/search?search=E07000114,Thanet District Council,26/10/2017,PC10104,3.99,,Aldi,N/A,Operational Services,Revenue,Catering,Catering,
http://statistics.data.gov.uk/search?search=E07000114,Thanet District Council,26/10/2017,441634,500.00,,All About Asbestos Limited,ALL044,Corporate Governance,Revenue,"Repairs,  Alter & Mtce - Build",Environmental Services,
http://statistics.data.gov.uk/search?search=E07000114,Thanet District Council,26/10/2017,PC10102,18.32,,Amazon UK Marketplace,N/A,Corporate Resources and S151,Revenue,"Print, Stat And Gen Off Exps",Stationery,
http://statistics.data.gov.uk/search?search=E07000114,Thanet District Council,26/10/2017,PC10062,26.49,,Amazon UK Retail,N/A,Community Services,Revenue,"Clothes, Uniforms & Laundry",Stationery,
http://statistics.data.gov.uk/search?search=E07000114,Thanet District Council,26/10/2017,441701,2729.00,,Andrews & Elliott Limited,AND001,Operational Services,Revenue,"Repairs,  Alter & Mtce - Build",Cemetery And Crematorium,
http://statistics.data.gov.uk/search?search=E07000114,Thanet District Council,26/10/2017,PC10148,16.98,2.83,Appliance Spares Warehouse,N/A,Operational Services,Revenue,"Equip, Furniture And Materials",Facilities And Management Serv,
http://statistics.data.gov.uk/search?search=E07000114,Thanet District Council,26/10/2017,PC10147,39.00,6.5,Argos Retail Group,N/A,Operational Services,Revenue,"Equip, Furniture And Materials",Domestic Goods,
http://statistics.data.gov.uk/search?search=E07000114,Thanet District Council,26/10/2017,PC10149,70.96,11.83,Armor-X Limited,N/A,Operational Services,Revenue,Communications & Computing,ICT,
http://statistics.data.gov.uk/search?search=E07000114,Thanet District Council,26/10/2017,PC10115,15.66,,BC Basecamp,N/A,Community Services,Revenue,Grants & Subscriptions,Financial Services,
http://statistics.data.gov.uk/search?search=E07000114,Thanet District Council,26/10/2017,PC10052,38.72,,Booker Ltd,N/A,Community Services,Revenue,Catering,Catering,
http://statistics.data.gov.uk/search?search=E07000114,Thanet District Council,26/10/2017,PC10080,62.41,,Booker Ltd,N/A,Corporate Governance,Revenue,Catering,Catering,
http://statistics.data.gov.uk/search?search=E07000114,Thanet District Council,26/10/2017,PC10089,9.99,,Booker Ltd,N/A,Chief Executive,Revenue,Catering,Catering,
http://statistics.data.gov.uk/search?search=E07000114,Thanet District Council,26/10/2017,PC10090,6.98,,Booker Ltd,N/A,Corporate Governance,Revenue,Catering,Catering,
http://statistics.data.gov.uk/search?search=E07000114,Thanet District Council,26/10/2017,PC10091,55.12,,Booker Ltd,N/A,Operational Services,Revenue,Catering,Catering,
http://statistics.data.gov.uk/search?search=E07000114,Thanet District Council,26/10/2017,PC10108,17.38,,Booker Ltd,N/A,Chief Executive,Revenue,Catering,Catering,
http://statistics.data.gov.uk/search?search=E07000114,Thanet District Council,26/10/2017,PC10129,12.86,,Booker Ltd,N/A,Community Services,Revenue,Catering,Catering,
http://statistics.data.gov.uk/search?search=E07000114,Thanet District Council,26/10/2017,441662,530.00,,Boxgreen Landscapes Ltd,BOX003,Corporate Governance,Revenue,"Repairs,  Alter & Mtce - Build",Construction-Repair And Maint,
http://statistics.data.gov.uk/search?search=E07000114,Thanet District Council,26/10/2017,PC10033,260.00,,British Standards,N/A,Operational Services,Revenue,"Print, Stat And Gen Off Exps",Stationery,
http://statistics.data.gov.uk/search?search=E07000114,Thanet District Council,26/10/2017,441581,1260.00,,Buckingham Futures Limited,BUC010,Community Services,Revenue,Agency Staff,Human Resources,
http://statistics.data.gov.uk/search?search=E07000114,Thanet District Council,26/10/2017,441992,2555.00,,Buckingham Futures Limited,BUC010,Community Services,Revenue,Agency Staff,Human Resources,
http://statistics.data.gov.uk/search?search=E07000114,Thanet District Council,26/10/2017,441993,1295.00,,Buckingham Futures Limited,BUC010,Community Services,Revenue,Agency Staff,Human Resources,
http://statistics.data.gov.uk/search?search=E07000114,Thanet District Council,26/10/2017,441320,434.26,,Canon (Uk) Ltd,CAN021,Corporate Governance,Revenue,"Print, Stat And Gen Off Exps",Facilities And Management Serv,
http://statistics.data.gov.uk/search?search=E07000114,Thanet District Council,26/10/2017,441478,209.76,,Canon (Uk) Ltd,CAN021,Corporate Governance,Revenue,"Print, Stat And Gen Off Exps",Facilities And Management Serv,
http://statistics.data.gov.uk/search?search=E07000114,Thanet District Council,26/10/2017,441585,286.01,,Canon (Uk) Ltd,CAN021,Corporate Governance,Revenue,"Equip, Furniture And Materials",Facilities And Management Serv,
http://statistics.data.gov.uk/search?search=E07000114,Thanet District Council,26/10/2017,441627,5084.25,,Canterbury Christ Church University,CAN006,Corporate Governance,Revenue,Energy Costs,Various Categories,
http://statistics.data.gov.uk/search?search=E07000114,Thanet District Council,26/10/2017,441374,1203.75,,Carol Peters,PET003,Community Services,Revenue,Services,Agency Payments,
http://statistics.data.gov.uk/search?search=E07000114,Thanet District Council,26/10/2017,441367,356.91,,Castle Automotive & Eng Supp Ltd,CAS024,Operational Services,Revenue,"Equip, Furniture And Materials",Vehicle Management,
http://statistics.data.gov.uk/search?search=E07000114,Thanet District Council,26/10/2017,441537,33691.61,,Certas Energy Uk Ltd,CER005,Operational Services,Revenue,Direct Transport Costs,Vehicle Management,
http://statistics.data.gov.uk/search?search=E07000114,Thanet District Council,26/10/2017,PC10081,190.00,,CIEH,N/A,Community Services,Revenue,Expenses,Human Resources,
http://statistics.data.gov.uk/search?search=E07000114,Thanet District Council,26/10/2017,441584,1696.00,,Cobalt Consulting (Uk) Limited,COB004,Corporate Governance,Revenue,Agency Staff,Human Resources,
http://statistics.data.gov.uk/search?search=E07000114,Thanet District Council,26/10/2017,441956,1696.00,,Cobalt Consulting (Uk) Limited,COB004,Corporate Governance,Revenue,Agency Staff,Human Resources,
http://statistics.data.gov.uk/search?search=E07000114,Thanet District Council,26/10/2017,PC10053,121.00,,County Court Canterbury,N/A,Community Services,Revenue,Services,Various Cats-Public Sector,
http://statistics.data.gov.uk/search?search=E07000114,Thanet District Council,26/10/2017,PC10061,224.17,,Currys,N/A,Corporate Governance,Revenue,"Equip, Furniture And Materials",Facilities And Management Serv,
http://statistics.data.gov.uk/search?search=E07000114,Thanet District Council,26/10/2017,441994,1750.00,,David Webb Associates Limited,DAV037,Corporate Resources and S151,Balance Sheet,Other Land And Buildings-Hra,Construction-Repair And Maint,
http://statistics.data.gov.uk/search?search=E07000114,Thanet District Council,26/10/2017,441554,223.91,,Dennis Eagle Ltd,DEN005,Operational Services,Revenue,Direct Transport Costs,Vehicle Management,
http://statistics.data.gov.uk/search?search=E07000114,Thanet District Council,26/10/2017,441555,223.91,,Dennis Eagle Ltd,DEN005,Operational Services,Revenue,Direct Transport Costs,Vehicle Management,
http://statistics.data.gov.uk/search?search=E07000114,Thanet District Council,26/10/2017,PC10066,652.50,,DVLA Vehicle Tax,N/A,Operational Services,Revenue,Direct Transport Costs,Various Cats-Public Sector,
http://statistics.data.gov.uk/search?search=E07000114,Thanet District Council,26/10/2017,PC10067,652.50,,DVLA Vehicle Tax,N/A,Operational Services,Revenue,Direct Transport Costs,Various Cats-Public Sector,
http://statistics.data.gov.uk/search?search=E07000114,Thanet District Council,26/10/2017,PC10068,652.50,,DVLA Vehicle Tax,N/A,Operational Services,Revenue,Direct Transport Costs,Various Cats-Public Sector,
http://statistics.data.gov.uk/search?search=E07000114,Thanet District Council,26/10/2017,PC10069,242.50,,DVLA Vehicle Tax,N/A,Community Services,Revenue,Direct Transport Costs,Various Cats-Public Sector,
http://statistics.data.gov.uk/search?search=E07000114,Thanet District Council,26/10/2017,PC10070,242.50,,DVLA Vehicle Tax,N/A,Operational Services,Revenue,Direct Transport Costs,Various Cats-Public Sector,
http://statistics.data.gov.uk/search?search=E07000114,Thanet District Council,26/10/2017,PC10071,652.50,,DVLA Vehicle Tax,N/A,Operational Services,Revenue,Direct Transport Costs,Various Cats-Public Sector,
http://statistics.data.gov.uk/search?search=E07000114,Thanet District Council,26/10/2017,441734,330967.75,,East Kent Housing Ltd,EKH002,Community Services,Revenue,Other Agencies,Housing Management,
http://statistics.data.gov.uk/search?search=E07000114,Thanet District Council,26/10/2017,442150,231.00,,East Kent Housing Ltd,EKH002,Community Services,Revenue,Communications & Computing,Housing Management,
http://statistics.data.gov.uk/search?search=E07000114,Thanet District Council,26/10/2017,PC10023,83.33,,EB Cornerstone Barristers,N/A,Community Services,Revenue,Expenses,Human Resources,
http://statistics.data.gov.uk/search?search=E07000114,Thanet District Council,26/10/2017,PC10059,60.00,,EB Cornerstone Barristers,N/A,Community Services,Revenue,Training,Human Resources,
http://statistics.data.gov.uk/search?search=E07000114,Thanet District Council,26/10/2017,PC10060,60.00,,EB Cornerstone Barristers,N/A,Community Services,Revenue,Training,Human Resources,
http://statistics.data.gov.uk/search?search=E07000114,Thanet District Council,26/10/2017,PC10140,60.00,,Eurotunnel,N/A,Operational Services,Revenue,Expenses,Human Resources,
http://statistics.data.gov.uk/search?search=E07000114,Thanet District Council,26/10/2017,PC10143,30.63,,Eurotunnel Fr Mobile Unitcoquelles,N/A,Operational Services,Revenue,Expenses,Human Resources,
http://statistics.data.gov.uk/search?search=E07000114,Thanet District Council,26/10/2017,PC10082,30.00,,F J Rogers,N/A,Corporate Governance,Revenue,"Equip, Furniture And Materials",Facilities And Management Serv,
http://statistics.data.gov.uk/search?search=E07000114,Thanet District Council,26/10/2017,PC10084,22.34,,Facebook,N/A,Community Services,Revenue,Miscellaneous Expenses,Facilities And Management Serv,
http://statistics.data.gov.uk/search?search=E07000114,Thanet District Council,26/10/2017,PC10085,18.85,,Facebook,N/A,Community Services,Revenue,Miscellaneous Expenses,Facilities And Management Serv,
http://statistics.data.gov.uk/search?search=E07000114,Thanet District Council,26/10/2017,441688,553.72,,Farrer Barnes Limited,FAR012,Corporate Resources and S151,Revenue,Agency Staff,Human Resources,
http://statistics.data.gov.uk/search?search=E07000114,Thanet District Council,26/10/2017,PC10122,79.25,,Firstaidforless,N/A,Operational Services,Revenue,"Equip, Furniture And Materials",Healthcare,
http://statistics.data.gov.uk/search?search=E07000114,Thanet District Council,26/10/2017,PC10123,-89.95,,Firstaidforless,N/A,Operational Services,Revenue,"Equip, Furniture And Materials",Healthcare,
http://statistics.data.gov.uk/search?search=E07000114,Thanet District Council,26/10/2017,441173,900.00,,Florence Court Hotel Ltd,FLO009,Community Services,Revenue,Services,Housing Management,
http://statistics.data.gov.uk/search?search=E07000114,Thanet District Council,26/10/2017,441174,1860.00,,Florence Court Hotel Ltd,FLO009,Community Services,Revenue,Services,Housing Management,
http://statistics.data.gov.uk/search?search=E07000114,Thanet District Council,26/10/2017,441176,1050.00,,Florence Court Hotel Ltd,FLO009,Community Services,Revenue,Services,Housing Management,
http://statistics.data.gov.uk/search?search=E07000114,Thanet District Council,26/10/2017,441177,930.00,,Florence Court Hotel Ltd,FLO009,Community Services,Revenue,Services,Housing Management,
http://statistics.data.gov.uk/search?search=E07000114,Thanet District Council,26/10/2017,441179,1050.00,,Florence Court Hotel Ltd,FLO009,Community Services,Revenue,Services,Housing Management,
http://statistics.data.gov.uk/search?search=E07000114,Thanet District Council,26/10/2017,441181,1200.00,,Florence Court Hotel Ltd,FLO009,Community Services,Revenue,Services,Housing Management,
http://statistics.data.gov.uk/search?search=E07000114,Thanet District Council,26/10/2017,441182,900.00,,Florence Court Hotel Ltd,FLO009,Community Services,Revenue,Services,Housing Management,
http://statistics.data.gov.uk/search?search=E07000114,Thanet District Council,26/10/2017,441906,420.00,,Gerlack & Thorne Ltd,GER001,Community Services,Revenue,"Repairs,  Alter & Mtce - Build",Construction-Repair And Maint,
http://statistics.data.gov.uk/search?search=E07000114,Thanet District Council,26/10/2017,441906,525.00,,Gerlack & Thorne Ltd,GER001,Corporate Governance,Revenue,"Repairs,  Alter & Mtce - Build",Construction-Repair And Maint,
http://statistics.data.gov.uk/search?search=E07000114,Thanet District Council,26/10/2017,441906,105.00,,Gerlack & Thorne Ltd,GER001,Operational Services,Revenue,"Repairs,  Alter & Mtce - Build",Construction-Repair And Maint,
http://statistics.data.gov.uk/search?search=E07000114,Thanet District Council,26/10/2017,PC10034,10.00,,Gov.uk,N/A,Community Services,Revenue,Services,Various Cats-Public Sector,
http://statistics.data.gov.uk/search?search=E07000114,Thanet District Council,26/10/2017,441925,992.25,,Hays Specialist Recruitment Ltd,HAY020,Community Services,Revenue,Agency Staff,Human Resources,
http://statistics.data.gov.uk/search?search=E07000114,Thanet District Council,26/10/2017,441287,486.55,,Hr Go (Kent) Ltd,HRG001,Operational Services,Revenue,Agency Staff,Human Resources,
http://statistics.data.gov.uk/search?search=E07000114,Thanet District Council,26/10/2017,441288,1615.07,,Hr Go (Kent) Ltd,HRG001,Operational Services,Revenue,Agency Staff,Human Resources,
http://statistics.data.gov.uk/search?search=E07000114,Thanet District Council,26/10/2017,441492,10026.14,,Hr Go (Kent) Ltd,HRG001,Operational Services,Revenue,Agency Staff,Human Resources,
http://statistics.data.gov.uk/search?search=E07000114,Thanet District Council,26/10/2017,441609,486.55,,Hr Go (Kent) Ltd,HRG001,Operational Services,Revenue,Agency Staff,Human Resources,
http://statistics.data.gov.uk/search?search=E07000114,Thanet District Council,26/10/2017,PC10112,766.67,,International Hotel Telford,N/A,East Kent Shared Services,Revenue,Expenses,Human Resources,
http://statistics.data.gov.uk/search?search=E07000114,Thanet District Council,26/10/2017,441290,40320.00,,Isuzu Truck (Uk) Limited,ISU001,Corporate Resources and S151,Balance Sheet,Plant And Equipment,Vehicle Management,
http://statistics.data.gov.uk/search?search=E07000114,Thanet District Council,26/10/2017,PC10096,8.33,,Jamies Italian,N/A,Community Services,Revenue,Catering,Human Resources,
http://statistics.data.gov.uk/search?search=E07000114,Thanet District Council,26/10/2017,441722,24745.00,,Kent County Council,KCC002,Corporate Resources and S151,Balance Sheet,Insurance Holding Account,Various Cats-Public Sector,
http://statistics.data.gov.uk/search?search=E07000114,Thanet District Council,26/10/2017,441737,1320.95,,Kent County Council,KCC002,Community Services,Revenue,Services,Various Cats-Public Sector,
http://statistics.data.gov.uk/search?search=E07000114,Thanet District Council,26/10/2017,442353,1537.78,,Kent County Council,KCC002,Corporate Resources and S151,Balance Sheet,Capital Exp-Non Council Assets,Various Cats-Public Sector,
http://statistics.data.gov.uk/search?search=E07000114,Thanet District Council,26/10/2017,442007,416.81,,Kent County Council (Kcs),KCC003,Community Services,Revenue,Energy Costs,Facilities And Management Serv,
http://statistics.data.gov.uk/search?search=E07000114,Thanet District Council,26/10/2017,442010,361.41,,Kent County Council (Kcs),KCC003,Corporate Governance,Revenue,Energy Costs,Facilities And Management Serv,
http://statistics.data.gov.uk/search?search=E07000114,Thanet District Council,26/10/2017,442013,267.08,,Kent County Council (Kcs),KCC003,Operational Services,Revenue,Energy Costs,Facilities And Management Serv,
http://statistics.data.gov.uk/search?search=E07000114,Thanet District Council,26/10/2017,442015,1587.32,,Kent County Council (Kcs),KCC003,Operational Services,Revenue,Energy Costs,Facilities And Management Serv,
http://statistics.data.gov.uk/search?search=E07000114,Thanet District Council,26/10/2017,442016,604.62,,Kent County Council (Kcs),KCC003,Corporate Governance,Revenue,Energy Costs,Facilities And Management Serv,
http://statistics.data.gov.uk/search?search=E07000114,Thanet District Council,26/10/2017,442018,215.56,,Kent County Council (Kcs),KCC003,Operational Services,Revenue,Energy Costs,Facilities And Management Serv,
http://statistics.data.gov.uk/search?search=E07000114,Thanet District Council,26/10/2017,442063,1185.92,,Kent County Council (Kcs),KCC003,Corporate Governance,Revenue,Energy Costs,Facilities And Management Serv,
http://statistics.data.gov.uk/search?search=E07000114,Thanet District Council,26/10/2017,442064,2596.91,,Kent County Council (Kcs),KCC003,Operational Services,Revenue,Energy Costs,Facilities And Management Serv,
http://statistics.data.gov.uk/search?search=E07000114,Thanet District Council,26/10/2017,442065,851.01,,Kent County Council (Kcs),KCC003,Operational Services,Revenue,Energy Costs,Facilities And Management Serv,
http://statistics.data.gov.uk/search?search=E07000114,Thanet District Council,26/10/2017,442066,790.87,,Kent County Council (Kcs),KCC003,Corporate Governance,Revenue,Energy Costs,Facilities And Management Serv,
http://statistics.data.gov.uk/search?search=E07000114,Thanet District Council,26/10/2017,442067,1065.84,,Kent County Council (Kcs),KCC003,Operational Services,Revenue,Energy Costs,Facilities And Management Serv,
http://statistics.data.gov.uk/search?search=E07000114,Thanet District Council,26/10/2017,442068,1159.84,,Kent County Council (Kcs),KCC003,Operational Services,Revenue,Energy Costs,Facilities And Management Serv,
http://statistics.data.gov.uk/search?search=E07000114,Thanet District Council,26/10/2017,442070,1206.58,,Kent County Council (Kcs),KCC003,Operational Services,Revenue,Energy Costs,Facilities And Management Serv,
http://statistics.data.gov.uk/search?search=E07000114,Thanet District Council,26/10/2017,442292,740.16,,Kent County Council (Kcs),KCC003,Operational Services,Revenue,Energy Costs,Facilities And Management Serv,
http://statistics.data.gov.uk/search?search=E07000114,Thanet District Council,26/10/2017,PC10144,4.51,,Liefkenshoektunnel,N/A,Operational Services,Revenue,Expenses,Human Resources,
http://statistics.data.gov.uk/search?search=E07000114,Thanet District Council,26/10/2017,PC10145,4.51,,Liefkenshoektunnel,N/A,Operational Services,Revenue,Expenses,Human Resources,
http://statistics.data.gov.uk/search?search=E07000114,Thanet District Council,26/10/2017,441161,1079.72,,Lobster Van Hire Ltd,LOB001,Operational Services,Revenue,Cont Hire & Operating Lease,Vehicle Management,
http://statistics.data.gov.uk/search?search=E07000114,Thanet District Council,26/10/2017,PC10038,25.80,,London & South Eastern,N/A,Operational Services,Revenue,Public Transport,Human Resources,
http://statistics.data.gov.uk/search?search=E07000114,Thanet District Council,26/10/2017,PC10054,73.30,,London & South Eastern,N/A,Operational Services,Revenue,Public Transport,Human Resources,
http://statistics.data.gov.uk/search?search=E07000114,Thanet District Council,26/10/2017,PC10074,66.60,,London & South Eastern,N/A,Community Services,Revenue,Public Transport,Human Resources,
http://statistics.data.gov.uk/search?search=E07000114,Thanet District Council,26/10/2017,PC10075,5.80,,London & South Eastern,N/A,Community Services,Revenue,Public Transport,Human Resources,
http://statistics.data.gov.uk/search?search=E07000114,Thanet District Council,26/10/2017,PC10086,117.10,,London & South Eastern,N/A,Community Services,Revenue,Public Transport,Human Resources,
http://statistics.data.gov.uk/search?search=E07000114,Thanet District Council,26/10/2017,PC10088,79.10,,London & South Eastern,N/A,Operational Services,Revenue,Public Transport,Human Resources,
http://statistics.data.gov.uk/search?search=E07000114,Thanet District Council,26/10/2017,PC10101,45.30,,London & South Eastern,N/A,Chief Executive,Revenue,Public Transport,Human Resources,
http://statistics.data.gov.uk/search?search=E07000114,Thanet District Council,26/10/2017,PC10109,193.60,,London & South Eastern,N/A,Community Services,Revenue,Public Transport,Human Resources,
http://statistics.data.gov.uk/search?search=E07000114,Thanet District Council,26/10/2017,PC10036,26.50,,Lser Onboard,N/A,Community Services,Revenue,Public Transport,Human Resources,
http://statistics.data.gov.uk/search?search=E07000114,Thanet District Council,26/10/2017,441153,493.04,,Lyreco Uk Limited,LYR001,Corporate Governance,Revenue,"Print, Stat And Gen Off Exps",Stationery,
http://statistics.data.gov.uk/search?search=E07000114,Thanet District Council,26/10/2017,PC10035,9.80,0.15,M&S Simply Food,N/A,Community Services,Revenue,Catering,Human Resources,
http://statistics.data.gov.uk/search?search=E07000114,Thanet District Council,26/10/2017,PC10100,9.98,,Maplin,N/A,Corporate Governance,Revenue,"Equip, Furniture And Materials",ICT,
http://statistics.data.gov.uk/search?search=E07000114,Thanet District Council,26/10/2017,PC10141,26.71,,McDonalds,N/A,Operational Services,Revenue,Expenses,Human Resources,
http://statistics.data.gov.uk/search?search=E07000114,Thanet District Council,26/10/2017,441229,225.00,,Mike Beer Transport Ltd,BEE006,Operational Services,Revenue,Direct Transport Costs,Vehicle Management,
http://statistics.data.gov.uk/search?search=E07000114,Thanet District Council,26/10/2017,441645,209.44,,Morgan Jones Ltd,MOR001,Corporate Governance,Revenue,Agency Staff,Human Resources,
http://statistics.data.gov.uk/search?search=E07000114,Thanet District Council,26/10/2017,441641,267.29,,Neopost Ltd,NEO003,Corporate Governance,Revenue,"Print, Stat And Gen Off Exps",Mail Services,
http://statistics.data.gov.uk/search?search=E07000114,Thanet District Council,26/10/2017,PC10064,390.00,,Norfolk County Council,N/A,Corporate Governance,Revenue,Expenses,Human Resources,
http://statistics.data.gov.uk/search?search=E07000114,Thanet District Council,26/10/2017,PC10128,7.02,,Norfolk County Council,N/A,Corporate Governance,Revenue,Expenses,Human Resources,
http://statistics.data.gov.uk/search?search=E07000114,Thanet District Council,26/10/2017,441520,6250.00,,Otterham Consulting Limited,OTT004,Corporate Governance,Revenue,Services,Consultancy,
http://statistics.data.gov.uk/search?search=E07000114,Thanet District Council,26/10/2017,PC10051,121.00,,Possessionclaim.Gov,N/A,Community Services,Revenue,Services,Various Cats-Public Sector,
http://statistics.data.gov.uk/search?search=E07000114,Thanet District Council,26/10/2017,PC10056,325.00,,Possessionclaim.Gov,N/A,Community Services,Revenue,Services,Various Cats-Public Sector,
http://statistics.data.gov.uk/search?search=E07000114,Thanet District Council,26/10/2017,PC10058,325.00,,Possessionclaim.Gov,N/A,Community Services,Revenue,Services,Various Cats-Public Sector,
http://statistics.data.gov.uk/search?search=E07000114,Thanet District Council,26/10/2017,PC10092,325.00,,Possessionclaim.Gov,N/A,Community Services,Revenue,Services,Various Cats-Public Sector,
http://statistics.data.gov.uk/search?search=E07000114,Thanet District Council,26/10/2017,PC10093,325.00,,Possessionclaim.Gov,N/A,Community Services,Revenue,Services,Various Cats-Public Sector,
http://statistics.data.gov.uk/search?search=E07000114,Thanet District Council,26/10/2017,PC10098,325.00,,Possessionclaim.Gov,N/A,Community Services,Revenue,Services,Various Cats-Public Sector,
http://statistics.data.gov.uk/search?search=E07000114,Thanet District Council,26/10/2017,441476,238.77,,Premier Paper Group Limited,PRE035,Corporate Governance,Revenue,"Print, Stat And Gen Off Exps",Stationery,
http://statistics.data.gov.uk/search?search=E07000114,Thanet District Council,26/10/2017,PC10111,75.75,,Protective Masks Direct,N/A,Community Services,Revenue,"Equip, Furniture And Materials",Clothing,
http://statistics.data.gov.uk/search?search=E07000114,Thanet District Council,26/10/2017,PC10072,298.80,,Quarterman Windscreens,N/A,Operational Services,Revenue,Direct Transport Costs,Vehicle Management,
http://statistics.data.gov.uk/search?search=E07000114,Thanet District Council,26/10/2017,PC10083,298.80,,Quarterman Windscreens (Uk) Ltd,N/A,Operational Services,Revenue,Direct Transport Costs,Vehicle Management,
http://statistics.data.gov.uk/search?search=E07000114,Thanet District Council,26/10/2017,441649,6083.96,,Scottish Water Business Stream Ltd,SCO019,Operational Services,Revenue,Water Services,Utilities,
http://statistics.data.gov.uk/search?search=E07000114,Thanet District Council,26/10/2017,441907,1254.35,,Scottish Water Business Stream Ltd,SCO019,Operational Services,Revenue,Water Services,Utilities,
http://statistics.data.gov.uk/search?search=E07000114,Thanet District Council,26/10/2017,441973,1135.42,,Scottish Water Business Stream Ltd,SCO019,Operational Services,Revenue,Water Services,Utilities,
http://statistics.data.gov.uk/search?search=E07000114,Thanet District Council,26/10/2017,442133,335.87,,Scottish Water Business Stream Ltd,SCO019,Corporate Governance,Revenue,Water Services,Utilities,
http://statistics.data.gov.uk/search?search=E07000114,Thanet District Council,26/10/2017,442133,681.90,,Scottish Water Business Stream Ltd,SCO019,Operational Services,Revenue,Water Services,Utilities,
http://statistics.data.gov.uk/search?search=E07000114,Thanet District Council,26/10/2017,441912,1917.00,,Sellick Partnership Ltd,SEL011,Corporate Governance,Revenue,Services,Human Resources,
http://statistics.data.gov.uk/search?search=E07000114,Thanet District Council,26/10/2017,PC10110,150.00,,Shelter,N/A,East Kent Shared Services,Revenue,Training,Human Resources,
http://statistics.data.gov.uk/search?search=E07000114,Thanet District Council,26/10/2017,PC10097,7.50,,Six Card C/Less Stock,N/A,Community Services,Revenue,Car Allowances,Human Resources,
http://statistics.data.gov.uk/search?search=E07000114,Thanet District Council,26/10/2017,PC10031,120.80,,Southeastern Web,N/A,Corporate Resources and S151,Revenue,Public Transport,Human Resources,
http://statistics.data.gov.uk/search?search=E07000114,Thanet District Council,26/10/2017,PC10057,158.20,,Southeastern Web,N/A,Corporate Resources and S151,Revenue,Public Transport,Human Resources,
http://statistics.data.gov.uk/search?search=E07000114,Thanet District Council,26/10/2017,PC10065,17.40,,Southeastern Web,N/A,Corporate Governance,Revenue,Expenses,Human Resources,
http://statistics.data.gov.uk/search?search=E07000114,Thanet District Council,26/10/2017,PC10077,66.20,,Southeastern Web,N/A,Community Services,Revenue,Public Transport,Human Resources,
http://statistics.data.gov.uk/search?search=E07000114,Thanet District Council,26/10/2017,PC10078,135.80,,Southeastern Web,N/A,Community Services,Revenue,Grants & Subscriptions,Human Resources,
http://statistics.data.gov.uk/search?search=E07000114,Thanet District Council,26/10/2017,PC10087,237.30,,Southeastern Web,N/A,Corporate Resources and S151,Revenue,Public Transport,Human Resources,
http://statistics.data.gov.uk/search?search=E07000114,Thanet District Council,26/10/2017,PC10106,22.40,,Southeastern Web,N/A,Corporate Governance,Revenue,Expenses,Human Resources,
http://statistics.data.gov.uk/search?search=E07000114,Thanet District Council,26/10/2017,441964,-242.02,,Southern Electric,SEL007,Community Services,Revenue,Energy Costs,Utilities,
http://statistics.data.gov.uk/search?search=E07000114,Thanet District Council,26/10/2017,442113,-985.06,,Southern Electric,SEL007,Corporate Governance,Revenue,Energy Costs,Utilities,
http://statistics.data.gov.uk/search?search=E07000114,Thanet District Council,26/10/2017,442115,-973.86,,Southern Electric,SEL007,Corporate Governance,Revenue,Energy Costs,Utilities,
http://statistics.data.gov.uk/search?search=E07000114,Thanet District Council,26/10/2017,442118,485.20,,Southern Electric,SEL007,Corporate Governance,Revenue,Energy Costs,Utilities,
http://statistics.data.gov.uk/search?search=E07000114,Thanet District Council,26/10/2017,442121,289.57,,Southern Electric,SEL007,Community Services,Revenue,Energy Costs,Utilities,
http://statistics.data.gov.uk/search?search=E07000114,Thanet District Council,26/10/2017,442125,382.99,,Southern Electric,SEL007,Operational Services,Revenue,Energy Costs,Utilities,
http://statistics.data.gov.uk/search?search=E07000114,Thanet District Council,26/10/2017,442129,663.78,,Southern Electric,SEL007,Corporate Governance,Revenue,Energy Costs,Utilities,
http://statistics.data.gov.uk/search?search=E07000114,Thanet District Council,26/10/2017,442130,475.47,,Southern Electric,SEL007,Corporate Governance,Revenue,Energy Costs,Utilities,
http://statistics.data.gov.uk/search?search=E07000114,Thanet District Council,26/10/2017,442137,-826.84,,Southern Electric,SEL007,Corporate Governance,Revenue,Energy Costs,Utilities,
http://statistics.data.gov.uk/search?search=E07000114,Thanet District Council,26/10/2017,442321,242.93,,Southern Electric,SEL007,Operational Services,Revenue,Energy Costs,Utilities,
http://statistics.data.gov.uk/search?search=E07000114,Thanet District Council,26/10/2017,441170,552.45,,Tennants Distribution Limited,TEN005,Operational Services,Revenue,Direct Transport Costs,Vehicle Management,
http://statistics.data.gov.uk/search?search=E07000114,Thanet District Council,26/10/2017,PC10079,3.33,,Tesco Store,N/A,Corporate Governance,Revenue,"Equip, Furniture And Materials",Domestic Goods,
http://statistics.data.gov.uk/search?search=E07000114,Thanet District Council,26/10/2017,441577,1500.00,,The Gpm Partnership Limited,GPM001,Corporate Resources and S151,Balance Sheet,Council Dwellings,Consultancy,
http://statistics.data.gov.uk/search?search=E07000114,Thanet District Council,26/10/2017,PC10105,82.50,,The Grand Hotel Bristol,N/A,Operational Services,Revenue,"Equip, Furniture And Materials",Human Resources,
http://statistics.data.gov.uk/search?search=E07000114,Thanet District Council,26/10/2017,PC10107,318.00,,The Law Society,N/A,Corporate Governance,Revenue,Employee Related Schemes,Financial Services,
http://statistics.data.gov.uk/search?search=E07000114,Thanet District Council,26/10/2017,PC10076,55.99,,The Tourism Society,N/A,Community Services,Revenue,Expenses,Human Resources,
http://statistics.data.gov.uk/search?search=E07000114,Thanet District Council,26/10/2017,441331,4500.00,,Topps Seafood Bar,TOP006,Operational Services,Revenue,Grants & Subscriptions,Facilities And Management Serv,
http://statistics.data.gov.uk/search?search=E07000114,Thanet District Council,26/10/2017,PC10142,53.35,,Total Jabbeke,N/A,Operational Services,Revenue,Expenses,Vehicle Management,
http://statistics.data.gov.uk/search?search=E07000114,Thanet District Council,26/10/2017,PC10120,64.77,,Trainline,N/A,Operational Services,Revenue,Public Transport,Human Resources,
http://statistics.data.gov.uk/search?search=E07000114,Thanet District Council,26/10/2017,PC10039,50.42,,Travelodge,N/A,Corporate Governance,Revenue,Expenses,Human Resources,
http://statistics.data.gov.uk/search?search=E07000114,Thanet District Council,26/10/2017,PC10040,5.25,,Travelodge,N/A,Corporate Governance,Revenue,Expenses,Human Resources,
http://statistics.data.gov.uk/search?search=E07000114,Thanet District Council,26/10/2017,PC10041,84.17,,Travelodge,N/A,Corporate Governance,Revenue,Expenses,Human Resources,
http://statistics.data.gov.uk/search?search=E07000114,Thanet District Council,26/10/2017,PC10042,10.50,,Travelodge,N/A,Corporate Governance,Revenue,Expenses,Human Resources,
http://statistics.data.gov.uk/search?search=E07000114,Thanet District Council,26/10/2017,441696,2780.00,,University Of Kent,UNI038,Community Services,Revenue,Training,Human Resources,
http://statistics.data.gov.uk/search?search=E07000114,Thanet District Council,26/10/2017,441578,1145.50,,Venn Group Limited,VEN004,Corporate Governance,Revenue,Services,Human Resources,
http://statistics.data.gov.uk/search?search=E07000114,Thanet District Council,26/10/2017,442001,1112.50,,Venn Group Limited,VEN004,Corporate Governance,Revenue,Services,Human Resources,
http://statistics.data.gov.uk/search?search=E07000114,Thanet District Council,26/10/2017,441545,366.66,,W Brazil & Bros,BRA001,Operational Services,Revenue,"Repairs,  Alter & Mtce - Build",Environmental Services,
http://statistics.data.gov.uk/search?search=E07000114,Thanet District Council,26/10/2017,441659,750.00,,Wilks Head & Eve,WIL028,Operational Services,Revenue,"Repairs,  Alter & Mtce - Build",Consultancy,
http://statistics.data.gov.uk/search?search=E07000114,Thanet District Council,26/10/2017,PC10094,10.10,,WM Morrisons PLC,N/A,Corporate Resources and S151,Revenue,Expenses,Catering,
http://statistics.data.gov.uk/search?search=E07000114,Thanet District Council,26/10/2017,PC10095,11.80,,WM Morrisons PLC,N/A,Corporate Resources and S151,Revenue,Expenses,Catering,
http://statistics.data.gov.uk/search?search=E07000114,Thanet District Council,26/10/2017,441660,405.00,,Zensor Security Ltd,ZEN004,Corporate Governance,Revenue,Services,Facilities And Management Serv,
http://statistics.data.gov.uk/search?search=E07000114,Thanet District Council,30/10/2017,442514,1331.77,,Co-Operative Bank Paypoint,COO018,Corporate Resources and S151,Revenue,Services,Financial Services,
http://statistics.data.gov.uk/search?search=E07000114,Thanet District Council,30/10/2017,442514,443.93,,Co-Operative Bank Paypoint,COO018,Community Services,Revenue,Services,Financial Services,
http://statistics.data.gov.uk/search?search=E07000114,Thanet District Council,30/10/2017,442515,271.81,,Nat West Bank,NWE001,Corporate Resources and S151,Revenue,Services,Various Categories,
http://statistics.data.gov.uk/search?search=E07000114,Thanet District Council,30/10/2017,442357,30900.00,,Public Works Loan Board,PWL001,Corporate Resources and S151,Balance Sheet,Debit Interest And Expenses,Investments And Loans,
http://statistics.data.gov.uk/search?search=E07000114,Thanet District Council,30/10/2017,442428,42857.14,,Public Works Loan Board,PWL001,Corporate Resources and S151,Balance Sheet,Borrowing Repayable>1 Yr,Investments And Loans,
http://statistics.data.gov.uk/search?search=E07000114,Thanet District Council,30/10/2017,442428,24420.00,,Public Works Loan Board,PWL001,Corporate Resources and S151,Balance Sheet,Debit Interest And Expenses,Investments And Loans,
http://statistics.data.gov.uk/search?search=E07000114,Thanet District Council,30/10/2017,442519,4321.92,,Salix Finance Ltd,SAL016,Corporate Resources and S151,Balance Sheet,Borrowing Repayable>1 Yr,Investments And Loans,
http://statistics.data.gov.uk/search?search=E07000114,Thanet District Council,30/10/2017,442423,805.88,,Santander,SAN017,Corporate Resources and S151,Revenue,Services,Various Categories,
http://statistics.data.gov.uk/search?search=E07000114,Thanet District Council,30/10/2017,442424,1475.26,,Santander,SAN017,Corporate Resources and S151,Revenue,Services,Various Categories,
http://statistics.data.gov.uk/search?search=E07000114,Thanet District Council,30/10/2017,442424,491.75,,Santander,SAN017,Community Services,Revenue,Services,Various Categories,
http://statistics.data.gov.uk/search?search=E07000114,Thanet District Council,30/10/2017,442422,-115662.00,,Secretary Of State,SEC003,Corporate Resources and S151,Revenue,Revenue Financing,Government Agencies,
http://statistics.data.gov.uk/search?search=E07000114,Thanet District Council,30/10/2017,442422,1402812.00,,Secretary Of State,SEC003,Corporate Resources and S151,Balance Sheet,Collection Fund,Government Agencies,
http://statistics.data.gov.uk/search?search=E07000114,Thanet District Council,30/10/2017,442431,2279.95,,Worldpay Ltd,WOR008,Corporate Resources and S151,Revenue,Services,Financial Services,
http://statistics.data.gov.uk/search?search=E07000114,Thanet District Council,31/10/2017,442293,1487.40,,Albion Fencing&Construction Kent Ltd,ALB005,Operational Services,Revenue,"Equip, Furniture And Materials",Building Construction Material,
http://statistics.data.gov.uk/search?search=E07000114,Thanet District Council,31/10/2017,441916,240.00,,All Sign Solutions Ltd,ALL002,Community Services,Revenue,"Equip, Furniture And Materials",Building Construction Material,
http://statistics.data.gov.uk/search?search=E07000114,Thanet District Council,31/10/2017,440992,1012.01,,Allstar Business Solutions Ltd,ALL038,Operational Services,Revenue,Direct Transport Costs,Vehicle Management,
http://statistics.data.gov.uk/search?search=E07000114,Thanet District Council,31/10/2017,442153,235.00,,Ashford Borough Council,ASH001,Corporate Resources and S151,Revenue,Services,Various Cats-Public Sector,
http://statistics.data.gov.uk/search?search=E07000114,Thanet District Council,31/10/2017,441579,912.50,,Bookpoint Limited,BOO003,Community Services,Revenue,"Equip, Furniture And Materials",Stationery,
http://statistics.data.gov.uk/search?search=E07000114,Thanet District Council,31/10/2017,441958,1265.00,,Broadstairs Metal Craft,BRO058,Operational Services,Revenue,"Repairs,  Alter & Mtce - Build",Construction-Repair And Maint,
http://statistics.data.gov.uk/search?search=E07000114,Thanet District Council,31/10/2017,442108,700.40,,Canterbury City Council,CAN004,Corporate Governance,Revenue,"Print, Stat And Gen Off Exps",Various Cats-Public Sector,
http://statistics.data.gov.uk/search?search=E07000114,Thanet District Council,31/10/2017,442282,1962.00,,Certas Energy Uk Ltd,CER005,Operational Services,Revenue,"Equip, Furniture And Materials",Vehicle Management,
http://statistics.data.gov.uk/search?search=E07000114,Thanet District Council,31/10/2017,441535,226.98,,City Electrical Factors Ltd,CIT001,Operational Services,Revenue,"Repairs,  Alter & Mtce - Build",Building Construction Material,
http://statistics.data.gov.uk/search?search=E07000114,Thanet District Council,31/10/2017,442036,20596.20,,Commercial Services Kent Ltd,COM049,Corporate Resources and S151,Balance Sheet,Plant And Equipment,Human Resources,
http://statistics.data.gov.uk/search?search=E07000114,Thanet District Council,31/10/2017,442036,295.00,,Commercial Services Kent Ltd,COM049,Operational Services,Revenue,Direct Transport Costs,Human Resources,
http://statistics.data.gov.uk/search?search=E07000114,Thanet District Council,31/10/2017,442037,20596.20,,Commercial Services Kent Ltd,COM049,Corporate Resources and S151,Balance Sheet,Plant And Equipment,Human Resources,
http://statistics.data.gov.uk/search?search=E07000114,Thanet District Council,31/10/2017,442037,295.00,,Commercial Services Kent Ltd,COM049,Operational Services,Revenue,Direct Transport Costs,Human Resources,
http://statistics.data.gov.uk/search?search=E07000114,Thanet District Council,31/10/2017,442079,2099.58,,Electoral Reform Services,ELE010,Corporate Governance,Revenue,"Print, Stat And Gen Off Exps",Facilities And Management Serv,
http://statistics.data.gov.uk/search?search=E07000114,Thanet District Council,31/10/2017,441297,611.00,,Electrical Lighting Solutions Ltd,ELE013,Corporate Governance,Revenue,"Repairs,  Alter & Mtce - Build",Building Construction Material,
http://statistics.data.gov.uk/search?search=E07000114,Thanet District Council,31/10/2017,441975,13526.16,,Facultatieve Technologies,FAC003,Operational Services,Revenue,"Repairs,  Alter & Mtce - Build",Cemetery And Crematorium,
http://statistics.data.gov.uk/search?search=E07000114,Thanet District Council,31/10/2017,442083,643.69,,Farrer Barnes Limited,FAR012,Corporate Resources and S151,Revenue,Agency Staff,Human Resources,
http://statistics.data.gov.uk/search?search=E07000114,Thanet District Council,31/10/2017,442154,694.49,,Farrer Barnes Limited,FAR012,Corporate Resources and S151,Revenue,Agency Staff,Human Resources,
http://statistics.data.gov.uk/search?search=E07000114,Thanet District Council,31/10/2017,442155,643.69,,Farrer Barnes Limited,FAR012,Corporate Resources and S151,Revenue,Agency Staff,Human Resources,
http://statistics.data.gov.uk/search?search=E07000114,Thanet District Council,31/10/2017,442134,16574.00,,Grant Thornton Uk Llp,GRA048,Corporate Resources and S151,Revenue,Services,Financial Services,
http://statistics.data.gov.uk/search?search=E07000114,Thanet District Council,31/10/2017,442049,6340.00,,Harmer & Sons Grounds Maiint Ltd,HAR074,Operational Services,Revenue,Services,Vehicle Management,
http://statistics.data.gov.uk/search?search=E07000114,Thanet District Council,31/10/2017,441178,511.75,,Haynes Of Maidstone Ltd,HAY008,Operational Services,Revenue,"Equip, Furniture And Materials",Vehicle Management,
http://statistics.data.gov.uk/search?search=E07000114,Thanet District Council,31/10/2017,442084,1406.25,,Holbrook Revell Electrical Ltd,HOL015,Operational Services,Revenue,"Repairs,  Alter & Mtce - Build",Building Construction Material,
http://statistics.data.gov.uk/search?search=E07000114,Thanet District Council,31/10/2017,441289,377.40,,Hr Go (Kent) Ltd,HRG001,Operational Services,Revenue,Agency Staff,Human Resources,
http://statistics.data.gov.uk/search?search=E07000114,Thanet District Council,31/10/2017,441330,575.96,,Hr Go (Kent) Ltd,HRG001,Operational Services,Revenue,Agency Staff,Human Resources,
http://statistics.data.gov.uk/search?search=E07000114,Thanet District Council,31/10/2017,441618,419.27,,Hr Go (Kent) Ltd,HRG001,Operational Services,Revenue,Agency Staff,Human Resources,
http://statistics.data.gov.uk/search?search=E07000114,Thanet District Council,31/10/2017,442146,449.55,,Hr Go (Kent) Ltd,HRG001,Operational Services,Revenue,Agency Staff,Human Resources,
http://statistics.data.gov.uk/search?search=E07000114,Thanet District Council,31/10/2017,442284,2008.49,,Kent County Council,KCC002,Corporate Governance,Revenue,Rents,Various Cats-Public Sector,
http://statistics.data.gov.uk/search?search=E07000114,Thanet District Council,31/10/2017,442073,450.00,,Lloyd Bore Ltd,LLO003,Operational Services,Revenue,Services,Consultancy,
http://statistics.data.gov.uk/search?search=E07000114,Thanet District Council,31/10/2017,441129,269.33,,Main Man Supplies Ltd,MAI001,Operational Services,Revenue,"Clothes, Uniforms & Laundry",Clothing,
http://statistics.data.gov.uk/search?search=E07000114,Thanet District Council,31/10/2017,441680,500.18,,Main Man Supplies Ltd,MAI001,Operational Services,Revenue,"Clothes, Uniforms & Laundry",Clothing,
http://statistics.data.gov.uk/search?search=E07000114,Thanet District Council,31/10/2017,441166,900.00,,Maudsley Charity,MAU003,Operational Services,Revenue,Rents,Financial Services,
http://statistics.data.gov.uk/search?search=E07000114,Thanet District Council,31/10/2017,442311,705.84,,Mears Ltd,MEA003,Corporate Governance,Revenue,"Repairs,  Alter & Mtce - Build",Construction-Repair And Maint,
http://statistics.data.gov.uk/search?search=E07000114,Thanet District Council,31/10/2017,442087,1500.00,,Michael Page Int Recruitment Ltd,PAG008,East Kent Shared Services,Revenue,Agency Staff,Human Resources,
http://statistics.data.gov.uk/search?search=E07000114,Thanet District Council,31/10/2017,442327,523.19,,Ncc Mechanical Services Limited,NCC006,Corporate Governance,Revenue,"Repairs,  Alter & Mtce - Build",Construction-Repair And Maint,
http://statistics.data.gov.uk/search?search=E07000114,Thanet District Council,31/10/2017,441943,507.00,,Noisemeters Limited,NOI001,Operational Services,Revenue,Services,Horticultural,
http://statistics.data.gov.uk/search?search=E07000114,Thanet District Council,31/10/2017,441274,949.00,,Pass Driving School Ltd,PAS003,Corporate Resources and S151,Revenue,Training,Human Resources,
http://statistics.data.gov.uk/search?search=E07000114,Thanet District Council,31/10/2017,441927,493.33,,Powermain Ltd,POW001,Operational Services,Revenue,"Repairs,  Alter & Mtce - Build",Building Construction Material,
http://statistics.data.gov.uk/search?search=E07000114,Thanet District Council,31/10/2017,442339,18432.68,,Public Works Loan Board,PWL001,Corporate Resources and S151,Balance Sheet,Debit Interest And Expenses,Investments And Loans,
http://statistics.data.gov.uk/search?search=E07000114,Thanet District Council,31/10/2017,442340,147845.48,,Public Works Loan Board,PWL001,Corporate Resources and S151,Balance Sheet,Debit Interest And Expenses,Investments And Loans,
http://statistics.data.gov.uk/search?search=E07000114,Thanet District Council,31/10/2017,441061,3780.00,,Riverside Truck Rental Limited,RIV005,Operational Services,Revenue,Cont Hire & Operating Lease,Vehicle Management,
http://statistics.data.gov.uk/search?search=E07000114,Thanet District Council,31/10/2017,442034,568.93,,Safetyshop,SAF010,Operational Services,Revenue,"Equip, Furniture And Materials",Health And Safety,
http://statistics.data.gov.uk/search?search=E07000114,Thanet District Council,31/10/2017,442106,503.44,,Safetyshop,SAF010,Operational Services,Revenue,"Equip, Furniture And Materials",Health And Safety,
http://statistics.data.gov.uk/search?search=E07000114,Thanet District Council,31/10/2017,442564,599.20,,Securitas Security Services (Uk) Ltd,SEC019,Community Services,Revenue,Services,Facilities And Management Serv,
http://statistics.data.gov.uk/search?search=E07000114,Thanet District Council,31/10/2017,442566,2653.60,,Securitas Security Services (Uk) Ltd,SEC019,Community Services,Revenue,Services,Facilities And Management Serv,
http://statistics.data.gov.uk/search?search=E07000114,Thanet District Council,31/10/2017,442569,398.20,,Securitas Security Services (Uk) Ltd,SEC019,Operational Services,Revenue,"Equip, Furniture And Materials",Facilities And Management Serv,
http://statistics.data.gov.uk/search?search=E07000114,Thanet District Council,31/10/2017,441201,729.50,,Streetmaster (S.Wales) Limited,STR001,Operational Services,Revenue,"Equip, Furniture And Materials",Highway Equipment And Material,
http://statistics.data.gov.uk/search?search=E07000114,Thanet District Council,31/10/2017,442320,338.90,,Thomas Francis,FRA016,Corporate Governance,Revenue,Services,Legal Services,
http://statistics.data.gov.uk/search?search=E07000114,Thanet District Council,31/10/2017,442140,900.00,,Viatec (Uk) Limited,VIA002,Operational Services,Revenue,"Equip, Furniture And Materials",Construction-Repair And Maint,
http://statistics.data.gov.uk/search?search=E07000114,Thanet District Council,31/10/2017,442021,340.00,,Wilks Head & Eve,WIL028,Operational Services,Revenue,"Repairs,  Alter & Mtce - Build",Consultancy,
http://statistics.data.gov.uk/search?search=E07000114,Thanet District Council,31/10/2017,442434,382.85,,Worldpay Ltd,WOR008,Corporate Resources and S151,Revenue,Services,Financial Services,
http://statistics.data.gov.uk/search?search=E07000114,Thanet District Council,31/10/2017,442517,2656.41,,Worldpay Ltd,WOR008,Corporate Resources and S151,Revenue,Services,Financial Services,
